Workbook

Sheet Sheet1 (hidden)
C3: 601 | E3: 602 | F3: 603 | G3: 604 | H3: 605 | I3: 606 | J3: 607 | K3: 608 | L3: 609 | M3: 610 | N3: 611 | O3: 612 | P3: 613
A4: LENGTH | B4: 144.211
A5: WIDTH | B5: 6 | C5: 8 | D5: 7.4 | E5: 6.8 | G5: 7.4 | H5: 6.2 | I5: 6.1
A6: THICKNESS | B6: 0.15 | I6: 0.03
A8: QTY | C8: =B4*C5*B6 -> 173.0532 | D8: =D5*$B$6*$B$4 -> 160.07421 | E8: =E5*$B$6*$B$4 -> 147.09522 | F8: =F5*$B$6*$B$4 -> 0 | G8: =G5*$B$6*$B$4 -> 160.07421 | H8: =H5*$B$4 -> 894.1082 | I8: =I5*$B$4*I6 -> 26.390613 | L8: =B4*2 -> 288.422
C10: 601 | E10: 602 | F10: 603 | G10: 604 | H10: 605 | I10: 606 | J10: 607 | K10: 608 | L10: 609 | M10: 610 | N10: 611 | O10: 612 | P10: 613
A11: LENGTH | B11: 3875.296
A12: WIDTH | B12: 5.5 | C12: 7.5 | D12: 6.9 | E12: 6.3 | G12: 6.9 | H12: 5.7 | I12: 5.6
A13: THICKNESS | B13: 0.15 | I13: 0.03
A15: QTY | C15: =$B$11*C12*$B$13 -> 4359.708 | D15: =$B$11*D12*$B$13 -> 4010.93136 | E15: =$B$11*E12*$B$13 -> 3662.15472 | F15: =$B$11*F12*$B$13 -> 0 | G15: 4010.93136 | H15: =$B$11*H12 -> 22089.1872 | I15: =$B$11*I12*I13 -> 651.049728 | J15: 0 | K15: 0 | L15: =B11*2 -> 7750.592
A18: Total | C18: =(C8+C15)*1.15 -> 5212.67538 | D18: =(D8+D15)*1.15 -> 4796.656405 | E18: =(E8+E15)*1.05 -> 3999.712437 | F18: =F8+F15*1.15 -> 0 | G18: =(G8+G15)*1.15 -> 4796.656405 | H18: =(H8+H15)*1.15 -> 26430.78971 | I18: =(I8+I15)*1.15*2.4 -> 1869.735341 | J18: 0 | K18: 0 | L18: 9201.6028 | M18: 0 | N18: 0 | O18: 0 | P18: 0

Sheet Earthworks (hidden)
A1: EARTHWORKS VOLUMES
A2: Road | B2: Length | C2: Total Cut m³ | D2: Total Fill m³ | E2: Cut Available m³ | F2: Excess Cut m³ | G2: Fill Shortfall m³ | H2: Top Soil to Strip m³ | I2: Banks Giving m² | J2: Top Soil Cover m | K2: Fill Slope Finishing m² | L2: Cut Slope Finishing m²
A3: MOTSEDU STREET | B3: 664.188 | C3: 624.405 | D3: 46.424 | E3: 624.405 | F3: 577.981 | G3: 0 | H3: 0 | I3: 367.224 | J3: 0 | K3: 527.635 | L3: 330.444
A4: MOSINO STREET | B4: 557.717 | C4: 513.238 | D4: 63.278 | E4: 513.238 | F4: 449.96 | G4: 0 | H4: 0 | I4: 284.613 | J4: 0 | K4: 563.62 | L4: 224.488
A5: MONATO STREET | B5: 677.043 | C5: 775.53 | D5: 31.649 | E5: 775.53 | F5: 743.881 | G5: 0 | H5: 0 | I5: 300.256 | J5: 0 | K5: 362.737 | L5: 274.084
A6: ISUNDU STREET | B6: 772.647 | C6: 832.185 | D6: 117.923 | E6: 832.185 | F6: 714.262 | G6: 0 | H6: 0 | I6: 422.436 | J6: 0 | K6: 983.662 | L6: 302.767
A27: Total | B27: =SUM(B3:B26) -> 2671.595 | C27: =SUM(C3:C26) -> 2745.358 | D27: 259.274 | E27: 2745.358 | F27: 2486.084 | G27: =SUM(G4:G15) -> 0 | H27: 0 | I27: =SUM(I3:I26) -> 1374.529 | J27: =SUM(J4:J15) -> 0 | K27: =SUM(K3:K26) -> 2437.654 | L27: =SUM(L3:L26) -> 1131.783

Sheet Kerbs (hidden)
A1: Kerb | B1: Description | C1: R Range 0-4 | D1: R Range 4-20 | E1: R Range > 20
A2: Figure 8c | B2: Total Length (m) | C2: 0 | D2: 294.067 | E2: 5045.604
A3: Figure 8c | B3: Volume (m3) | C3: 0 | D3: 13.895 | E3: 238.405

Sheet Layerworks (hidden)
A1: Description | B1: Cut Prep m² | C1: Fill Prep m² | D1: Cut Vol m³ | E1: Fill Vol m³
A2: 150mm C4 COMPACTED TO 97% | B2: 17006.617 | C2: 0.01 | D2: 2549.744 | E2: 1.304
A3: 150mm G2 COMPACTED TO 86% | B3: 16171.99 | C3: 30.378 | D3: 2393.395 | E3: 37.431
A4: 150mm ROADBED COMPCTD 93% | B4: 17808.464 | C4: 0 | D4: 2671.27 | E4: 0
A5: 30mm HMA | B5: 15304.015 | C5: 910.323 | D5: 449.455 | E5: 37.68
A6: Total | B6: 66291.086 | C6: 940.711 | D6: 8063.864 | E6: 76.415

Sheet NMT and Stormwater (hidden)
A1: NMT 2.2M WIDE
A2: 150mm C4
A3: 150mm Rip and Recompact
A4: Fig 12 kerb
A8: Soshanguve Stormwater
A9: Description/pipe size | B9: Length | D9: Type | E9: No.
A10: 1050mm | B10: 186.23 | D10: KI | E10: 47
A11: 900mm | B11: 223.83 | D11: MH | E11: 13
A12: 750mm | B12: 1450 | E12: =E10+E11 -> 60
A13: 600mm | B13: 1230

Sheet Section 001
A1: ITEM | B1: DESCRIPTION | C1: UNIT | D1: QTY | E1: RATE | F1: AMOUNT
A3: SERIES 0 | B3: GENERAL
A5: Section 001 | B5: General Requirements and Charges
A7: 001.01 | B7: Preliminary and General Charges
A9: 001.01.01 | B9: Fixed charges | C9: lump sum | D9: 1 | F9: =IF(TRIM(D9)="rate only","ro",IF(OR(ISBLANK(D9),ISBLANK(E9))," ",D9*E9)) -> 
A11: 001.01.02 | B11: Time-related charges | C11: Months | D11: 12 | F11: =IF(TRIM(D11)="rate only","ro",IF(OR(ISBLANK(D11),ISBLANK(E11))," ",D11*E11)) -> 
A13: 001.02 | B13: Locating Existing Services | C13: lump sum | D13: 1 | F13: =IF(TRIM(D13)="rate only","ro",IF(OR(ISBLANK(D13),ISBLANK(E13))," ",D13*E13)) -> 
A15: LI 001.03 | B15: Excavate by hand to expose existing
B16: services and backfill | C16: m³ | D16: =762.82/2 -> 381 | F16: =IF(TRIM(D16)="rate only","ro",IF(OR(ISBLANK(D16),ISBLANK(E16))," ",D16*E16)) -> 
A18: B001 | B18: Relocating of existing services | C18: lump sum | D18: 1 | F18: =IF(TRIM(D18)="rate only","ro",IF(OR(ISBLANK(D18),ISBLANK(E18))," ",D18*E18)) -> 
A20: 001.04 | B20: Compliance with the Occupational
B21: Health and Safety Act and applicable
B22: regulations
A24: 001.04.01 | B24: Provision of a Health and Safety Plan | C24: lump sum | D24: 1 | F24: =IF(TRIM(D24)="rate only","ro",IF(OR(ISBLANK(D24),ISBLANK(E24))," ",D24*E24)) -> 
A26: 001.04.02 | B26: Provision of a Health and Safety File | C26: lump sum | D26: 1 | F26: =IF(TRIM(D26)="rate only","ro",IF(OR(ISBLANK(D26),ISBLANK(E26))," ",D26*E26)) -> 
A28: 001.04.04 | B28: Provision of a safety officer-
A30: 001.04.04.02 | B30: Full time | C30: pm | D30: 12 | F30: =IF(TRIM(D30)="rate only","ro",IF(OR(ISBLANK(D30),ISBLANK(E30))," ",D30*E30)) -> 
A32: 001.04.05 | B32: Health and safety training | C32: lump sum | D32: 1 | F32: =E32*D32 -> R 0.00
A34: B001.04.06 | B34: Acredited (CETA) Training
A36: B001.04.06,01 | B36: Acredited Training for Labourers | C36: Prov sum | D36: 1 | E36: R 200,000.00 | F36: =E36*D36 -> R 200,000.00
A38: B001.04.06.02 | B38: Percentage on item B001.04.06 for | C38: % | D38: =F36 -> R200,000.00
A40: TOTAL CARRIED FORWARD
A42: Signature of person authorised to sign the tender: | E42: Date
A45: ITEM | B45: DESCRIPTION | C45: UNIT | D45: QTY | E45: RATE | F45: AMOUNT
A46: TOTAL BROUGHT FORWARD | F46: =F40 -> R 0.00
A48: 001.04.06 | B48: Provision of personal protective
B49: clothing and equipment | C49: lump sum | D49: 1 | F49: =E49*D49 -> 0.00
A51: 001.04.07 | B51: Provision of safety fences, signs and
B52: barricades | C52: lump sum | D52: 1 | F52: =E52*D52 -> 0.00
A54: B001.05 | B54: Community liaison officer
A56: B001.05.01 | B56: Monthly Wage | C56: month | D56: 12 | E56: 16,928.00 | F56: =E56*D56 -> 203,136.00
A58: B001.05.02 | B58: Percentage on item B001.05.01 for
B59: charges and profit | C59: % | D59: =F56 -> R203,136.00 | F59: =IF(TRIM(D59)="rate only","ro",IF(OR(ISBLANK(D59),ISBLANK(E59))," ",D59*E59)) -> 
A62: B001.06 | B62: Contract Notice Board | C62: no | D62: 2 | F62: =IF(TRIM(D62)="rate only","ro",IF(OR(ISBLANK(D62),ISBLANK(E62))," ",D62*E62)) -> 
B63: (See Drawing STD-001)
A66: TOTAL CARRIED TO SUMMARY
A68: Signature of person authorised to sign the tender: | E68: Date

Sheet Section 002
A1: ITEM | B1: DESCRIPTION | C1: UNIT | D1: QTY | E1: RATE | F1: AMOUNT
A3: SERIES 0 | B3: GENERAL
A5: Section 002 | B5: Engineer's Accommodation
A7: 002.01 | B7: Services
A9: 002.01.01 | B9: Services for offices and laboratories | C9: lump sum | D9: 1 | F9: =IF(TRIM(D9)="rate only","ro",IF(OR(ISBLANK(D9),ISBLANK(E9))," ",D9*E9)) -> 
A11: 002.01.02 | B11: Services for cooking and ablution | C11: lump sum | D11: 1 | F11: =IF(TRIM(D11)="rate only","ro",IF(OR(ISBLANK(D11),ISBLANK(E11))," ",D11*E11)) -> 
B12: facilities on Site for the Engineers site
B13: staff
A15: LI 002.02 | B15: Treatment and maintenance of areas
B16: surrounding offices | C16: lump sum | D16: 1 | F16: =IF(TRIM(D16)="rate only","ro",IF(OR(ISBLANK(D16),ISBLANK(E16))," ",D16*E16)) -> 
A18: 002.03 | B18: Office and laboratory accommodation | C18: lump sum | D18: 1 | F18: =IF(TRIM(D18)="rate only","ro",IF(OR(ISBLANK(D18),ISBLANK(E18))," ",D18*E18)) -> 
A20: 002.04 | B20: Provision of survey equipment and
B21: assistants | C21: lump sum | D21: 1 | F21: =IF(TRIM(D21)="rate only","ro",IF(OR(ISBLANK(D21),ISBLANK(E21))," ",D21*E21)) -> 
A24: TOTAL CARRIED TO SUMMARY | F24: =SUM(F2:F23) -> R 0.00
A26: Signature of person authorised to sign the tender: | E26: Date

Sheet Section 101
A1: ITEM | B1: DESCRIPTION | C1: UNIT | D1: QTY | E1: RATE | F1: AMOUNT
A3: SERIES 1 | B3: ANCILLARY WORK
A5: Section 101 | B5: Site Clearing and Grubbing
A7: 101.01 | B7: Clearing and grubbing
A9: 101.01.01 | B9: Areas
A11: LI 101.01.01.01 | B11: Clear and grub | C11: m² | D11: =1435*10 -> 14,350 | F11: =IF(TRIM(D11)="rate only","ro",IF(OR(ISBLANK(D11),ISBLANK(E11))," ",D11*E11)) -> 
A13: 101.02 | B13: Cutting and removing large trees
B14: with a girth -
A16: LI 101.02.01 | B16: exceeding 1m and up to and | C16: no | D16: 1 | F16: =IF(TRIM(D16)="rate only","ro",IF(OR(ISBLANK(D16),ISBLANK(E16))," ",D16*E16)) -> 
B17: including 2m
A19: 101.03 | B19: Grubbing and the removal of the
B20: stumps and roots of large trees with
B21: girth -
A23: LI 101.03.01 | B23: exceeding 1m and up to and | C23: no | D23: 1 | F23: =IF(TRIM(D23)="rate only","ro",IF(OR(ISBLANK(D23),ISBLANK(E23))," ",D23*E23)) -> 
B24: including 2m
A26: TOTAL CARRIED FORWARD | F26: =SUM(F2:F25) -> R 0.00
A28: Signature of person authorised to sign the tender: | E28: Date
A31: ITEM | B31: DESCRIPTION | C31: UNIT | D31: QTY | E31: RATE | F31: AMOUNT
A32: TOTAL BROUGHT FORWARD | F32: =F26 -> R 0.00
A34: 101.04 | B34: Re-clearing of areas (only on the
B35: written instructions of the Engineer)
A37: 101.04.01 | B37: Strips
A39: LI 101.04.01.01 | B39: Width indicated | C39: m | D39: 0 | F39: =IF(TRIM(D39)="rate only","ro",IF(OR(ISBLANK(D39),ISBLANK(E39))," ",D39*E39)) -> 
A41: 101.04.01.02 | B41: Etc for other widths | C41: m | D41: Rate Only | F41: =IF(TRIM(D41)="rate only","ro",IF(OR(ISBLANK(D41),ISBLANK(E41))," ",D41*E41)) -> ro
A44: LI 101.04.02 | B44: Areas not classified as strips | C44: m² | D44: Rate Only | F44: =IF(TRIM(D44)="rate only","ro",IF(OR(ISBLANK(D44),ISBLANK(E44))," ",D44*E44)) -> ro
A47: 101.05 | B47: Removal and disposal of specific
B48: elements
A50: 101.05.02.04 | B50: Concrete elements (unreinforced) | C50: m³ | D50: 5 | F50: =IF(TRIM(D50)="rate only","ro",IF(OR(ISBLANK(D50),ISBLANK(E50))," ",D50*E50)) -> 
A52: 101.05.02.05 | B52: Concrete elements (reinforced) | C52: m³ | D52: 50 | F52: =IF(TRIM(D52)="rate only","ro",IF(OR(ISBLANK(D52),ISBLANK(E52))," ",D52*E52)) -> 
A55: 101.05.03 | B55: Asphalt surfacing | C55: m² | D55: =(1435*8) -> 11,480 | F55: =IF(TRIM(D55)="rate only","ro",IF(OR(ISBLANK(D55),ISBLANK(E55))," ",D55*E55)) -> 
A57: TOTAL CARRIED TO SUMMARY | F57: =SUM(F32:F56) -> R 0.00
A59: Signature of person authorised to sign the tender: | E59: Date

Sheet Section 102
A1: ITEM | B1: DESCRIPTION | C1: UNIT | D1: QTY | E1: RATE | F1: AMOUNT
A3: SERIES 1 | B3: ANCILLARY WORK
A5: Section 102: | B5: Accommodation of Traffic
A7: 102.02.1 | B7: Accommodation of traffic and | C7: m² | D7: =1300*7.4 -> 9,620
B8: maintenance of Bypass
A10: 102.07 | B10: Existing roads used as bypasses | C10: m² | D10: =D7 -> 9,620 | F10: =IF(TRIM(D10)="rate only","ro",IF(OR(ISBLANK(D10),ISBLANK(E10))," ",D10*E10)) -> 
A12: TOTAL CARRIED FORWARD | F12: =SUM(F5:F11) -> R 0.00
A14: Signature of person authorised to sign the tender: | E14: Date
A17: ITEM | B17: DESCRIPTION | C17: UNIT | D17: QTY | E17: RATE | F17: AMOUNT
A18: TOTAL BROUGHT FORWARD | F18: =F12 -> R 0.00
A20: 102.14 | B20: Temporary traffic-control facilities
A22: LI 102.14.01 | B22: Flagmen | C22: Lump sum | D22: 1 | F22: =IF(TRIM(D22)="rate only","ro",IF(OR(ISBLANK(D22),ISBLANK(E22))," ",D22*E22)) -> 
A24: 102.14.02 | B24: Portable Stop and Go signs | C24: no | D24: 2 | F24: =IF(TRIM(D24)="rate only","ro",IF(OR(ISBLANK(D24),ISBLANK(E24))," ",D24*E24)) -> 
A26: 102.14.03 | B26: Amber flashing lights | C26: no | D26: 2 | F26: =IF(TRIM(D26)="rate only","ro",IF(OR(ISBLANK(D26),ISBLANK(E26))," ",D26*E26)) -> 
A28: 102.14.04 | B28: Road signs, TR-series, 1200mm in
B29: diameter or 900mm x 675mm if
B30: rectangular | C30: no | D30: 15 | F30: =IF(TRIM(D30)="rate only","ro",IF(OR(ISBLANK(D30),ISBLANK(E30))," ",D30*E30)) -> 
A32: 102.14.05 | B32: Road signs, TW-series, 1524mm
B33: sides | C33: no | D33: 15 | F33: =IF(TRIM(D33)="rate only","ro",IF(OR(ISBLANK(D33),ISBLANK(E33))," ",D33*E33)) -> 
A35: 102.14.06 | B35: Road signs, TG-series | C35: m² | D35: 15 | F35: =IF(TRIM(D35)="rate only","ro",IF(OR(ISBLANK(D35),ISBLANK(E35))," ",D35*E35)) -> 
A37: 102.14.07 | B37: Danger plates and delineators | C37: no | D37: =1435/20 -> 72 | F37: =IF(TRIM(D37)="rate only","ro",IF(OR(ISBLANK(D37),ISBLANK(E37))," ",D37*E37)) -> 
A41: TOTAL CARRIED FORWARD | F41: =SUM(F17:F40) -> R 0.00
A43: Signature of person authorised to sign the tender: | E43: Date
A46: ITEM | B46: DESCRIPTION | C46: UNIT | D46: QTY | E46: RATE | F46: AMOUNT
A47: TOTAL BROUGHT FORWARD | F47: =F41 -> R 0.00
A49: 102.14.08 | B49: Moveable barricade / road sign
B50: combination | C50: no | D50: 5 | F50: =IF(TRIM(D50)="rate only","ro",IF(OR(ISBLANK(D50),ISBLANK(E50))," ",D50*E50)) -> 
A52: 102.14.09 | B52: Traffic cones | C52: lump sum | D52: 1 | F52: =IF(TRIM(D52)="rate only","ro",IF(OR(ISBLANK(D52),ISBLANK(E52))," ",D52*E52)) -> 
A54: 102.14.10 | B54: Plastic New Jersey barrier | C54: no | D54: =1435/30 -> 48 | F54: =IF(TRIM(D54)="rate only","ro",IF(OR(ISBLANK(D54),ISBLANK(E54))," ",D54*E54)) -> 
A56: 102.15 | B56: Re-use or removal of traffic-control
B57: facilities
A59: 102.15.01 | B59: Amber flicker lights | C59: no | D59: =D26 -> 2 | F59: =IF(TRIM(D59)="rate only","ro",IF(OR(ISBLANK(D59),ISBLANK(E59))," ",D59*E59)) -> 
A61: 102.15.02 | B61: Road signs, TR and TW series | C61: no | D61: 15 | F61: =IF(TRIM(D61)="rate only","ro",IF(OR(ISBLANK(D61),ISBLANK(E61))," ",D61*E61)) -> 
A63: 102.15.03 | B63: Road signs, TG-series | C63: no | D63: 15 | F63: =IF(TRIM(D63)="rate only","ro",IF(OR(ISBLANK(D63),ISBLANK(E63))," ",D63*E63)) -> 
A65: 102.15.04 | B65: Danger plates and delineators | C65: no | D65: =1435/20 -> 72 | F65: =IF(TRIM(D65)="rate only","ro",IF(OR(ISBLANK(D65),ISBLANK(E65))," ",D65*E65)) -> 
A67: 102.15.05 | B67: Plastic New Jersey barrier | C67: no | D67: 48 | F67: =IF(TRIM(D67)="rate only","ro",IF(OR(ISBLANK(D67),ISBLANK(E67))," ",D67*E67)) -> 
A70: TOTAL CARRIED TO SUMMARY | F70: =SUM(F47:F69) -> R 0.00
A72: Signature of person authorised to sign the tender: | E72: Date

Sheet Section 103
A1: ITEM | B1: DESCRIPTION | C1: UNIT | D1: QTY | E1: RATE | F1: AMOUNT
A3: SERIES 1 | B3: ANCILLARY WORK
A5: Section 103 | B5: Overhaul
A7: 103.01 | B7: Overhaul on material hauled outside
B8: the defined free-haul boundaries | C8: m³.km | D8: =1235*20*0.3*5 -> 37,050 | F8: =IF(TRIM(D8)="rate only","ro",IF(OR(ISBLANK(D8),ISBLANK(E8))," ",D8*E8)) -> 
B9: (Free-haul boundaries will be defined
B10: as 1 km outside the indicated site
B11: boundaries)
A22: TOTAL CARRIED TO SUMMARY | F22: =SUM(F2:F21) -> R 0.00
A24: Signature of person authorised to sign the tender: | E24: Date

Sheet Section 104
A1: ITEM | B1: DESCRIPTION | C1: UNIT | D1: QTY | E1: RATE | F1: AMOUNT
A3: SERIES 1 | B3: ANCILLARY WORK
A5: Section 104 | B5: Landscaping and Grassing
A7: 104.01 | B7: Trimming
A9: LI 104.01.02 | B9: Hand trimming | C9: m² | D9: =10*20*3 -> 600 | F9: =IF(TRIM(D9)="rate only","ro",IF(ISBLANK(E9)," ",D9*E9)) -> 
A12: 104.03 | B12: Preparing areas for grassing and
B13: ground covers
A15: 104.03.01 | B15: Scarifying | C15: ha | D15: =D9/10000 -> 0.06 | F15: =IF(TRIM(D15)="rate only","ro",IF(ISBLANK(E15)," ",D15*E15)) -> 
A17: 104.03.02 | B17: Top soiling on the Site with -
A19: 104.03.02.02 | B19: Topsoil provided by the Contractor
B20: from other sources (including all
B21: haul) | C21: m³ | D21: =10*20*3*0.15 -> 90 | F21: =IF(TRIM(D21)="rate only","ro",IF(ISBLANK(E21)," ",D21*E21)) -> 
A23: 104.03.04 | B23: Supplying and applying chemical
B24: fertilizers
A26: 104.03.04.04 | B26: 2:3:2 (22) | C26: t | D26: 0.5 | F26: =IF(TRIM(D26)="rate only","ro",IF(ISBLANK(E26)," ",D26*E26)) -> 
A28: TOTAL CARRIED FORWARD | F28: =SUM(F2:F27) -> R 0.00
A30: Signature of person authorised to sign the tender: | E30: Date
A33: ITEM | B33: DESCRIPTION | C33: UNIT | D33: QTY | E33: RATE | F33: AMOUNT
A34: TOTAL BROUGHT FORWARD | F34: =F28 -> R 0.00
A36: 104.04 | B36: Grassing
A38: LI 104.04.01 | B38: Planting of grass | C38: ha | D38: =D15 -> 0.06 | F38: =IF(TRIM(D38)="rate only","ro",IF(ISBLANK(E38)," ",D38*E38)) -> 
A40: 104.08 | B40: Extra work for landscaping | C40: Lump sum | D40: 1 | F40: =IF(TRIM(D40)="rate only","ro",IF(ISBLANK(E40)," ",D40*E40)) -> 
A50: TOTAL CARRIED TO SUMMARY | F50: =SUM(F33:F49) -> R 0.00
A52: Signature of person authorised to sign the tender: | E52: Date

Sheet Section 105 (hidden)
A1: ITEM | B1: DESCRIPTION | C1: UNIT | D1: QTY | E1: RATE | F1: AMOUNT
A3: SERIES 1 | B3: ANCILLARY WORK
A5: Section 105 | B5: Fencing
A7: 105.01 | B7: Supply and erection of new fencing
B8: material
A10: LI 105.01.01 | B10: Barbed wire (Single strand oval with
B11: 4 barbs, 3.15mm/2.5 line diameter,
B12: 1.90mm barb diameter, min 1050 Mpa
B13: tensile strength, bright galvanized) | C13: m | D13: Rate Only | F13: =IF(TRIM(D13)="rate only","ro",IF(OR(ISBLANK(D13),ISBLANK(E13))," ",D13*E13)) -> ro
A15: 105.01.02 | B15: Smooth wire
A17: LI 105.01.02.01 | B17: Mild-steel wire, 4.00mm diameter,
B18: fully galvanised | C18: m | D18: Rate Only | F18: =IF(TRIM(D18)="rate only","ro",IF(ISBLANK(E18)," ",D18*E18)) -> ro
A20: LI 105.01.02.02 | B20: High strain wire, 2.24mm diameter,
B21: fully galvanised | C21: m | D21: Rate Only | F21: =IF(TRIM(D21)="rate only","ro",IF(ISBLANK(E21)," ",D21*E21)) -> ro
A24: 105.01.03 | B24: Barbed tape security barriers
A26: 105.01.03.01 | B26: Concertina coil -
A28: LI 105.01.03.01.01 | B28: Short barb, 900mm coil, galvanised | C28: m | D28: Rate Only | F28: =IF(TRIM(D28)="rate only","ro",IF(ISBLANK(E28)," ",D28*E28)) -> ro
A30: LI 105.01.03.01.02 | B30: Short barb, 730mm coil, galvanised | C30: m | D30: Rate Only | F30: =IF(TRIM(D30)="rate only","ro",IF(ISBLANK(E30)," ",D30*E30)) -> ro
A32: LI 105.01.03.01.03 | B32: Short barb, 450mm coil, galvanised | C32: m | D32: Rate Only | F32: =IF(TRIM(D32)="rate only","ro",IF(ISBLANK(E32)," ",D32*E32)) -> ro
A34: LI 105.01.03.01.04 | B34: Medium barb, 900mm coil, galvanised | C34: m | D34: Rate Only | F34: =IF(TRIM(D34)="rate only","ro",IF(ISBLANK(E34)," ",D34*E34)) -> ro
A36: LI 105.01.03.01.05 | B36: Medium barb, 730mm coil, galvanised | C36: m | D36: Rate Only | F36: =IF(TRIM(D36)="rate only","ro",IF(ISBLANK(E36)," ",D36*E36)) -> ro
A38: LI 105.01.03.01.06 | B38: Medium barb, 450mm coil, galvanised | C38: m | D38: Rate Only | F38: =IF(TRIM(D38)="rate only","ro",IF(ISBLANK(E38)," ",D38*E38)) -> ro
A41: 105.01.03.02 | B41: Flat wrap -
A43: LI 105.01.03.02.01 | B43: Short barb, 900mm coil, galvanised | C43: m | D43: Rate Only | F43: =IF(TRIM(D43)="rate only","ro",IF(ISBLANK(E43)," ",D43*E43)) -> ro
A45: LI 105.01.03.02.02 | B45: Short barb, 730mm coil, galvanised | C45: m | D45: Rate Only | F45: =IF(TRIM(D45)="rate only","ro",IF(ISBLANK(E45)," ",D45*E45)) -> ro
A47: LI 105.01.03.02.03 | B47: Short barb, 450mm coil, galvanised | C47: m | D47: Rate Only | F47: =IF(TRIM(D47)="rate only","ro",IF(ISBLANK(E47)," ",D47*E47)) -> ro
A49: TOTAL CARRIED FORWARD | F49: =SUM(F2:F48) -> R 0.00
A51: Signature of person authorised to sign the tender: | E51: Date
A54: ITEM | B54: DESCRIPTION | C54: UNIT | D54: QTY | E54: RATE | F54: AMOUNT
A55: TOTAL BROUGHT FORWARD | F55: =F49 -> R 0.00
A57: LI 105.01.03.02.04 | B57: Medium barb, 900mm coil, galvanised | C57: m | D57: Rate Only | F57: =IF(TRIM(D57)="rate only","ro",IF(ISBLANK(E57)," ",D57*E57)) -> ro
A59: LI 105.01.03.02.05 | B59: Medium barb, 730mm coil, galvanised | C59: m | D59: Rate Only | F59: =IF(TRIM(D59)="rate only","ro",IF(ISBLANK(E59)," ",D59*E59)) -> ro
A61: LI 105.01.03.02.06 | B61: Medium barb, 450mm coil, galvanised | C61: m | D61: Rate Only | F61: =IF(TRIM(D61)="rate only","ro",IF(ISBLANK(E61)," ",D61*E61)) -> ro
A64: 105.01.04 | B64: Diamond mesh
A66: LI 105.01.04.01 | B66: 37mm x 2.5mm | C66: m² | D66: Rate Only | F66: =IF(TRIM(D66)="rate only","ro",IF(ISBLANK(E66)," ",D66*E66)) -> ro
A68: LI 105.01.04.02 | B68: 50mm x 2.5mm | C68: m² | D68: Rate Only | F68: =IF(TRIM(D68)="rate only","ro",IF(ISBLANK(E68)," ",D68*E68)) -> ro
A70: LI 105.01.04.03 | B70: 64mm x 2.5mm | C70: m² | D70: Rate Only | F70: =IF(TRIM(D70)="rate only","ro",IF(ISBLANK(E70)," ",D70*E70)) -> ro
A73: 105.01.06 | B73: Corner, end, straining and gate posts,
B74: including anchors
B75: (See Drawing STD-014 Sheet 1 of 3)
A77: 105.01.06.01 | B77: Standard Post | C77: no | D77: Rate Only | F77: =IF(TRIM(D77)="rate only","ro",IF(ISBLANK(E77)," ",D77*E77)) -> ro
A79: LI 105.01.06.01.01 | B79: Straining Post | C79: no | D79: Rate Only | F79: =IF(TRIM(D79)="rate only","ro",IF(ISBLANK(E79)," ",D79*E79)) -> ro
A81: LI 105.01.06.01.02 | B81: Corner Post | C81: no | D81: Rate Only | F81: =IF(TRIM(D81)="rate only","ro",IF(ISBLANK(E81)," ",D81*E81)) -> ro
A83: LI 105.01.06.01.03 | B83: Gate Post (Double Leaf Gate) | C83: no | D83: Rate Only | F83: =IF(TRIM(D83)="rate only","ro",IF(ISBLANK(E83)," ",D83*E83)) -> ro
A85: LI 105.01.06.01.04 | B85: Gate Post (Single Leaf Gate) | C85: no | D85: Rate Only | F85: =IF(TRIM(D85)="rate only","ro",IF(ISBLANK(E85)," ",D85*E85)) -> ro
A87: LI 105.01.06.01.05 | B87: Gate Post (Pedestrian Gate) | C87: no | D87: Rate Only | F87: =IF(TRIM(D87)="rate only","ro",IF(ISBLANK(E87)," ",D87*E87)) -> ro
A90: 105.02 | B90: New gates
B91: (See Drawing STD-014 Sheet 1 of 3)
A93: LI 105.02.01 | B93: Single Leaf | C93: no | D93: Rate Only | F93: =IF(TRIM(D93)="rate only","ro",IF(ISBLANK(E93)," ",D93*E93)) -> ro
A95: LI 105.02.02 | B95: Double Leaf | C95: no | D95: Rate Only | F95: =IF(TRIM(D95)="rate only","ro",IF(ISBLANK(E95)," ",D95*E95)) -> ro
A97: LI 105.02.03 | B97: Pedistrian | C97: no | D97: Rate Only | F97: =IF(TRIM(D97)="rate only","ro",IF(ISBLANK(E97)," ",D97*E97)) -> ro
A101: TOTAL CARRIED FORWARD | F101: =SUM(F55:F100) -> R 0.00
A103: Signature of person authorised to sign the tender: | E103: Date
A106: ITEM | B106: DESCRIPTION | C106: UNIT | D106: QTY | E106: RATE | F106: AMOUNT
A107: TOTAL BROUGHT FORWARD | F107: =F101 -> R 0.00
A109: 105.03 | B109: Moving of existing fences and gates
A111: 105.03.01 | B111: Fences:
A113: LI 105.03.01.01 | B113: Ordinary Fences | C113: m | D113: Rate Only | F113: =IF(TRIM(D113)="rate only","ro",IF(ISBLANK(E113)," ",D113*E113)) -> ro
A115: LI 105.03.01.02 | B115: Security Fences | C115: m | D115: Rate Only | F115: =IF(TRIM(D115)="rate only","ro",IF(ISBLANK(E115)," ",D115*E115)) -> ro
A118: LI 105.03.02 | B118: Gates | C118: no | D118: Rate Only | F118: =IF(TRIM(D118)="rate only","ro",IF(ISBLANK(E118)," ",D118*E118)) -> ro
A121: LI 105.04 | B121: Dismanteling of existing fences | C121: m | D121: Rate Only | F121: =IF(TRIM(D121)="rate only","ro",IF(ISBLANK(E121)," ",D121*E121)) -> ro
A123: 105.06 | B123: Provision of temporary fencing
A125: LI 105.06.01 | B125: Ordinary | C125: m | D125: Rate Only | F125: =IF(TRIM(D125)="rate only","ro",IF(ISBLANK(E125)," ",D125*E125)) -> ro
A127: LI 105.06.02 | B127: Security | C127: m | D127: Rate Only | F127: =IF(TRIM(D127)="rate only","ro",IF(ISBLANK(E127)," ",D127*E127)) -> ro
A130: 105.07 | B130: Ring bolts for anchoring fencing to
B131: structures | C131: no | D131: Rate Only | F131: =IF(TRIM(D131)="rate only","ro",IF(ISBLANK(E131)," ",D131*E131)) -> ro
A153: TOTAL CARRIED TO SUMMARY | F153: =SUM(F107:F152) -> R 0.00
A155: Signature of person authorised to sign the tender: | E155: Date

Sheet Section B107
A1: ITEM | B1: DESCRIPTION | C1: UNIT | D1: QTY | E1: RATE | F1: AMOUNT
A3: SERIES 1 | B3: ANCILLARY WORK
A5: Section B107 | B5: Dayworks
A7: B107.01 | B7: Labour during normal working hours
A9: B107.01.01 | B9: Unskilled labour | C9: h | D9: 40 | F9: =IF(TRIM(D9)="rate only","ro",IF(OR(ISBLANK(D9),ISBLANK(E9))," ",D9*E9)) -> 
A11: B107.01.02 | B11: Semi-skilled labour | C11: h | D11: 40 | F11: =IF(TRIM(D11)="rate only","ro",IF(ISBLANK(E11)," ",D11*E11)) -> 
A13: B107.01.03 | B13: Skilled labour | C13: h | D13: 40 | F13: =IF(TRIM(D13)="rate only","ro",IF(ISBLANK(E13)," ",D13*E13)) -> 
A16: B107.02 | B16: Extra-over item B107.02 for charges
B17: and overheads
A19: B107.02.01 | B19: Unskilled labour | C19: % | D19: =F9 ->  | F19: =IF(TRIM(D19)="rate only","ro",IF(ISBLANK(E19)," ",D19*E19)) -> 
A21: B107.02.02 | B21: Semi-skilled labour | C21: % | D21: =F11 ->  | F21: =IF(TRIM(D21)="rate only","ro",IF(ISBLANK(E21)," ",D21*E21)) -> 
A23: B107.02.03 | B23: Skilled labour | C23: % | D23: =F13 ->  | F23: =IF(TRIM(D23)="rate only","ro",IF(ISBLANK(E23)," ",D23*E23)) -> 
A25: B107.03 | B25: Construction Plant
A27: B107.03.01 | B27: Tipper trucks
A29: B107.03.01.01 | B29: 6m³ capacity | C29: h | D29: 40 | F29: =IF(TRIM(D29)="rate only","ro",IF(ISBLANK(E29)," ",D29*E29)) -> 
A31: B107.03.01.02 | B31: 10m³ capacity | C31: h | D31: 40 | F31: =IF(TRIM(D31)="rate only","ro",IF(ISBLANK(E31)," ",D31*E31)) -> 
A33: B107.03.02 | B33: Backhoe loaders (Mass 7 - 8 ton) | C33: h | D33: =D29 -> 40 | F33: =IF(TRIM(D33)="rate only","ro",IF(ISBLANK(E33)," ",D33*E33)) -> 
A35: B107.03.04 | B35: Tracked Excavator (Mass 18 - 22 ton,
B36: Power 70 - 105 kW) | C36: h | D36: =D29 -> 40 | F36: =IF(TRIM(D36)="rate only","ro",IF(ISBLANK(E36)," ",D36*E36)) -> 
A38: B107.03.06 | B38: Grader (Mass 16 - 20 ton) | C38: h | D38: 40 | F38: =IF(TRIM(D38)="rate only","ro",IF(ISBLANK(E38)," ",D38*E38)) -> 
A40: TOTAL CARRIED FORWARD | F40: =SUM(F2:F39) -> R 0.00
A42: Signature of person authorised to sign the tender: | E42: Date
A45: ITEM | B45: DESCRIPTION | C45: UNIT | D45: QTY | E45: RATE | F45: AMOUNT
A46: TOTAL BROUGHT FORWARD | F46: =F40 -> R 0.00
A48: B107.03.09 | B48: Rollers
A50: B107.03.09.01 | B50: Pneumatic Roller (14 - 21 ton) | C50: h | D50: =D29 -> 40 | F50: =IF(TRIM(D50)="rate only","ro",IF(ISBLANK(E50)," ",D50*E50)) -> 
A52: B107.03.09.03 | B52: Single drum vibratory padfoot roller
B53: (10 - 14 ton) | C53: h | D53: 38 | F53: =IF(TRIM(D53)="rate only","ro",IF(ISBLANK(E53)," ",D53*E53)) -> 
A55: B107.03.09.05 | B55: Single drum vibratory smooth roller
B56: (10 - 14 ton) | C56: h | D56: 38 | F56: =IF(TRIM(D56)="rate only","ro",IF(ISBLANK(E56)," ",D56*E56)) -> 
A58: TOTAL CARRIED TO SUMMARY | F58: =SUM(F57:F57) -> R 0.00
A60: Signature of person authorised to sign the tender: | E60: Date

Sheet Section 201
A1: ITEM | B1: DESCRIPTION | C1: UNIT | D1: QTY | E1: RATE | F1: AMOUNT
A3: SERIES 2 | B3: EARTHWORKS
A5: Section 201 | B5: General
A7: 201.02 | B7: Temporary stockpiling of material | C7: m³ | D7: =1235*8*0.3 -> 2,964 | F7: =D7*E7 -> R 0.00
A28: TOTAL CARRIED TO SUMMARY | F28: =SUM(F2:F27) -> R 0.00
A30: Signature of person authorised to sign the tender: | E30: Date

Sheet Section 202
A1: ITEM | B1: DESCRIPTION | C1: UNIT | D1: QTY | E1: RATE | F1: AMOUNT
A3: SERIES 2 | B3: EARTHWORKS
A5: Section 202 | B5: Trenching
A7: 202.01 | B7: Trench excavation
A9: 202.01.02 | B9: Over 1,0 m and up to 2,0 m wide
A11: 202.01.02.02 | B11: Over 1,0m deep and up to 1,5m deep | C11: m³ | D11: 216 | F11: =IF(TRIM(D11)="rate only","ro",IF(ISBLANK(E11)," ",D11*E11)) -> 
A13: 202.01.02.03 | B13: Over 1,5m deep and up to 2,0m deep | C13: m³ | D13: =761.58*1.5*2+70*10*2 -> 3,685 | F13: =IF(TRIM(D13)="rate only","ro",IF(ISBLANK(E13)," ",D13*E13)) -> 
A16: TOTAL CARRIED FORWARD | F16: =SUM(F2:F15) -> R 0.00
A18: Signature of person authorised to sign the tender: | E18: Date
A21: ITEM | B21: DESCRIPTION | C21: UNIT | D21: QTY | E21: RATE | F21: AMOUNT
A22: TOTAL BROUGHT FORWARD | F22: =F16 -> R 0.00
A24: 202.02 | B24: Extra over items 202.01, 202.03 and
B25: 202.09 for excavating in -
A27: 202.02.01 | B27: Intermediate material | C27: m³ | D27: =50%*SUM(D10:D13) -> 1,950 | F27: =IF(TRIM(D27)="rate only","ro",IF(ISBLANK(E27)," ",D27*E27)) -> 
A29: 202.02.02 | B29: Hard material | C29: m³ | D29: =SUM(D10:D13)*30% -> 1,170 | F29: =IF(TRIM(D29)="rate only","ro",IF(ISBLANK(E29)," ",D29*E29)) -> 
A31: 202.04 | B31: Hand excavation (extra over item
B32: 202.01) | C32: m³ | D32: =D29*20% -> 234 | F32: =IF(TRIM(D32)="rate only","ro",IF(ISBLANK(E32)," ",D32*E32)) -> 
A34: 202.06 | B34: The backfilling of trenches (excluding
B35: the backfill around the pipe barrel)
B36: with material obtained from
B37: excavations | C37: m³ | D37: =D13*80%*1.1 -> 3,243 | F37: =IF(TRIM(D37)="rate only","ro",IF(ISBLANK(E37)," ",D37*E37)) -> 
A39: 202.07 | B39: Extra over items 202.06 and 202.13
B40: for using backfill material obtained -
A42: 202.07.01 | B42: From borrow areas | C42: m³ | D42: =D37*50% -> 1,621 | F42: =IF(TRIM(D42)="rate only","ro",IF(ISBLANK(E42)," ",D42*E42)) -> 
A44: 202.07.02 | B44: From sources provided by the
B45: contractor | C45: m³ | D45: =D37*30% -> 973 | F45: =IF(TRIM(D45)="rate only","ro",IF(ISBLANK(E45)," ",D45*E45)) -> 
A48: 202.08 | B48: Backfilling additional excavations in
B49: trench floor using -
A51: 202.08.01 | B51: Class 1 : 3 :6 / 19 concrete | C51: m³ | D51: 50 | F51: =IF(TRIM(D51)="rate only","ro",IF(ISBLANK(E51)," ",D51*E51)) -> 
A53: 202.08.02 | B53: Concrete aggregate, max size 38 mm | C53: m³ | D53: 2 | F53: =IF(TRIM(D53)="rate only","ro",IF(ISBLANK(E53)," ",D53*E53)) -> 
A55: TOTAL CARRIED FORWARD | F55: =SUM(F21:F54) -> R 0.00
A57: Signature of person authorised to sign the tender: | E57: Date
A60: ITEM | B60: DESCRIPTION | C60: UNIT | D60: QTY | E60: RATE | F60: AMOUNT
A61: TOTAL BROUGHT FORWARD | F61: =F55 -> R 0.00
A63: 202.10 | B63: Removal of spoil material
A65: 202.10.02 | B65: To dumping areas to be provided by
B66: Contractor | C66: m³ | D66: =SUM(D10:D14)*20% -> 780 | F66: =IF(TRIM(D66)="rate only","ro",IF(ISBLANK(E66)," ",D66*E66)) -> 
A68: 202.13 | B68: Backfilling trenches with soilcrete | C68: m³ | D68: 50 | F68: =IF(TRIM(D68)="rate only","ro",IF(ISBLANK(E68)," ",D68*E68)) -> 
A94: TOTAL CARRIED TO SUMMARY | F94: =SUM(F61:F93) -> R 0.00
A96: Signature of person authorised to sign the tender: | E96: Date

Sheet Section 203
A1: ITEM | B1: DESCRIPTION | C1: UNIT | D1: QTY | E1: RATE | F1: AMOUNT
A3: SERIES 2 | B3: EARTHWORKS
A5: Section 203 | B5: Mass Earthworks
A7: 203.01 | B7: Excavation and borrow to fill
A9: 203.01.01 | B9: Compaction to 90% of modified
B10: AASHTO density | C10: m³ | D10: =1230*8*0.15 -> 1,476 | F10: =IF(TRIM(D10)="rate only","ro",IF(OR(ISBLANK(D10),ISBLANK(E10))," ",D10*E10)) -> 
A12: 203.01.02 | B12: Rock-fill processing and compaction | C12: m³ | D12: =100*10*0.5 -> 500 | F12: =IF(TRIM(D12)="rate only","ro",IF(ISBLANK(E12)," ",D12*E12)) -> 
A14: 203.01.03 | B14: Twelve-pass roller compaction | C14: m³ | D14: =D12 -> 500 | F14: =IF(TRIM(D14)="rate only","ro",IF(ISBLANK(E14)," ",D14*E14)) -> 
A16: 203.02 | B16: Extra over item 203.01 for excavating
B17: in
A19: 203.02.01 | B19: Intermediate material | C19: m³ | D19: =D10*10% -> 148 | F19: =IF(TRIM(D19)="rate only","ro",IF(ISBLANK(E19)," ",D19*E19)) -> 
A21: 203.02.02 | B21: Hard material | C21: m³ | D21: =D10*20% -> 295 | F21: =IF(TRIM(D21)="rate only","ro",IF(ISBLANK(E21)," ",D21*E21)) -> 
A23: B203.03 | B23: Excavate and stockpiling of -
A25: 203.03.01 | B25: Soft material | C25: m³ | D25: 933 | F25: =IF(TRIM(D25)="rate only","ro",IF(ISBLANK(E25)," ",D25*E25)) -> 
A27: 203.03.02 | B27: Intermediate material | C27: m³ | D27: 1,866 | F27: =IF(TRIM(D27)="rate only","ro",IF(ISBLANK(E27)," ",D27*E27)) -> 
A29: 203.03.03 | B29: Hard material | C29: m³ | D29: 950 | F29: =IF(TRIM(D29)="rate only","ro",IF(ISBLANK(E29)," ",D29*E29)) -> 
A31: 203.04 | B31: Removal of oversize material | C31: m³ | D31: =10%*D10 -> 148 | F31: =IF(TRIM(D31)="rate only","ro",IF(ISBLANK(E31)," ",D31*E31)) -> 
A38: TOTAL CARRIED FORWARD | F38: =SUM(F2:F37) -> R 0.00
A40: Signature of person authorised to sign the tender: | E40: Date
A43: ITEM | B43: DESCRIPTION | C43: UNIT | D43: QTY | E43: RATE | F43: AMOUNT
A44: TOTAL BROUGHT FORWARD | F44: =F38 -> R 0.00
A46: 203.05 | B46: Variations in compactive effort
B47: (applicable to sub item 203.01.03
B48: and item 203.07)
A50: 203.05.01 | B50: Vibratory rollers | C50: m².pass | D50: =100*8.8 -> 880 | F50: =IF(TRIM(D50)="rate only","ro",IF(ISBLANK(E50)," ",D50*E50)) -> 
A52: 203.07 | B52: Three-pass roller compaction
A54: 203.07.01 | B54: Vibratory roller | C54: m².pass | D54: =1435*8.8 -> 12,628 | F54: =IF(TRIM(D54)="rate only","ro",IF(ISBLANK(E54)," ",D54*E54)) -> 
A56: 203.08 | B56: Preparation and compaction of
B57: construction bed material to 90% of
B58: modified AASHTO density | C58: m³ | D58: =1435*10*0.2+61 -> 2,931 | F58: =IF(TRIM(D58)="rate only","ro",IF(ISBLANK(E58)," ",D58*E58)) -> 
A60: 203.09 | B60: Material bladed to windrow | C60: m³ | D60: =D58*30% -> 879 | F60: =IF(TRIM(D60)="rate only","ro",IF(ISBLANK(E60)," ",D60*E60)) -> 
A63: TOTAL CARRIED FORWARD | F63: =SUM(F43:F62) -> R 0.00
A65: Signature of person authorised to sign the tender: | E65: Date
A68: ITEM | B68: DESCRIPTION | C68: UNIT | D68: QTY | E68: RATE | F68: AMOUNT
A69: TOTAL BROUGHT FORWARD | F69: =F63 -> R 0.00
A71: 203.10 | B71: In situ treatment of the construction
B72: bed
A74: 203.10.01 | B74: In situ treatment by ripping | C74: m³ | D74: =D58 -> 2,931 | F74: =IF(TRIM(D74)="rate only","ro",IF(ISBLANK(E74)," ",D74*E74)) -> 
A76: 203.11 | B76: Finishing off slopes
A78: LI 203.11.01 | B78: Excavation slopes | C78: m² | D78: 1,500 | F78: =IF(TRIM(D78)="rate only","ro",IF(ISBLANK(E78)," ",D78*E78)) -> 
A80: LI 203.11.02 | B80: Fill slopes | C80: m² | D80: 1,000 | F80: =IF(TRIM(D80)="rate only","ro",IF(ISBLANK(E80)," ",D80*E80)) -> 
A82: 203.12 | B82: Provision of impact roller (extra over
B83: items 203.07) | C83: no | D83: 1 | F83: =IF(TRIM(D83)="rate only","ro",IF(ISBLANK(E83)," ",D83*E83)) -> 
A85: 203.14 | B85: Extra over item 203.01 for borrow
B86: material from sources to be
B87: supplied by the Contractor | C87: m³ | D87: 200 | F87: =IF(TRIM(D87)="rate only","ro",IF(ISBLANK(E87)," ",D87*E87)) -> 
A89: 203.15 | B89: Extra over items 203.03 and 203.04
B90: for disposing of spoil material to sites
B91: to be provided by the Contractor | C91: m³ | D91: =D31 -> 148 | F91: =IF(TRIM(D91)="rate only","ro",IF(ISBLANK(E91)," ",D91*E91)) -> 
A99: TOTAL CARRIED TO SUMMARY | F99: =SUM(F69:F98) -> R 0.00
A101: Signature of person authorised to sign the tender: | E101: Date

Sheet Section 501
A1: ITEM | B1: DESCRIPTION | C1: UNIT | D1: QTY | E1: RATE | F1: AMOUNT
A3: SERIES 5 | B3: DRAINAGE AND EROSION
B4: PROTECTION
A6: Section 501 | B6: Subsurface Drains and Drainage
B7: Blankets
A9: 501.01 | B9: Crushed stone
A11: 501.01.02 | B11: Single-sized crushed stone:
A13: 501.01.02.02 | B13: 19mm nominal aggregate size | C13: m³ | D13: =100*2*0.3*1.1 -> 66 | F13: =IF(TRIM(D13)="rate only","ro",IF(ISBLANK(E13)," ",D13*E13)) -> 
A15: 501.02 | B15: Procuring of filter sand | C15: Lump Sum | D15: 1 | F15: =IF(TRIM(D15)="rate only","ro",IF(ISBLANK(E15)," ",D15*E15)) -> 
A17: B501.03 | B17: Backfill with imported material (min G7) | C17: m³ | D17: =100*1*0.3 -> 30 | F17: =IF(TRIM(D17)="rate only","ro",IF(ISBLANK(E17)," ",D17*E17)) -> 
A19: 501.04 | B19: Geotextiles
A21: 501.04.02 | B21: Grade A2 (1.6mm thick) | C21: m² | D21: =1.2*100 -> 120 | F21: =IF(TRIM(D21)="rate only","ro",IF(ISBLANK(E21)," ",D21*E21)) -> 
A23: 501.05 | B23: Pipes in subsurface drains
A25: 501.05.01 | B25: OPVC Pipes complete with couplings | C25: m | D25: 100 | F25: =IF(TRIM(D25)="rate only","ro",IF(ISBLANK(E25)," ",D25*E25)) -> 
A27: 501.07 | B27: Concrete outlet structure for
B28: subsurface drains, including
B29: formwork, Class 20/19 concrete | C29: m³ | D29: 1 | F29: =IF(TRIM(D29)="rate only","ro",IF(ISBLANK(E29)," ",D29*E29)) -> 
B30: (See drawing STD-023)
A32: 501.08 | B32: Concrete caps for subsurface
B33: drain pipes | C33: no | D33: =100/50 -> 2 | F33: =IF(TRIM(D33)="rate only","ro",IF(ISBLANK(E33)," ",D33*E33)) -> 
A36: TOTAL CARRIED TO SUMMARY | F36: =SUM(F2:F35) -> R 0.00

Sheet Section 502
A1: ITEM | B1: DESCRIPTION | C1: UNIT | D1: QTY | E1: RATE | F1: AMOUNT
A2: SERIES 5 | B2: DRAINAGE AND EROSION
B3: PROTECTION
A5: Section 502 | B5: Prefabricated Culverts and
B6: Stormwater Sewers
A8: 502.01 | B8: Backfilling with selected excavated
B9: material compacted to -
A11: 502.01.02 | B11: 93% of modified AASHTO density | C11: m³ | D11: =('Section 202'!D13+'Section 202'!D11)*80%*1.1 -> 3,433 | F11: =IF(TRIM(D11)="rate only","ro",IF(ISBLANK(E11)," ",D11*E11)) -> 
A13: 502.02 | B13: Supplying and laying of concrete
B14: pipe culverts (type SC-pipes)
A16: 502.02.01 | B16: Class B bedding / Class 100D
A18: 502.02.01.01 | B18: 600 mm Ø | C18: m | D18: =60*2 -> 120 | F18: =IF(TRIM(D18)="rate only","ro",IF(ISBLANK(E18)," ",D18*E18)) -> 
A20: 502.02.02 | B20: Class B bedding / Class 75D
A22: 502.02.02.02 | B22: 450 mm Ø | C22: m | D22: =46.301+36.481+40.651+40.759+21.066+40.73+38.908+41.48+49.881+34.57 -> 391 | F22: =IF(TRIM(D22)="rate only","ro",IF(ISBLANK(E22)," ",D22*E22)) -> 
A24: 502.02.02.03 | B24: 525 mm Ø | C24: m | D24: =28.377+40.046+41.209 -> 110 | F24: =IF(TRIM(D24)="rate only","ro",IF(ISBLANK(E24)," ",D24*E24)) -> 
A26: 502.02.02.04 | B26: 600 mm Ø | C26: m | D26: =39.899+14.842+17.871 -> 73 | F26: =IF(TRIM(D26)="rate only","ro",IF(ISBLANK(E26)," ",D26*E26)) -> 
A28: 502.02.02.05 | B28: 675 mm Ø | C28: m | D28: =30.881+30.001 -> 61 | F28: =IF(TRIM(D28)="rate only","ro",IF(ISBLANK(E28)," ",D28*E28)) -> 
A30: 502.02.02.06 | B30: 750 mm Ø | C30: m | D30: =25.57+40.04 -> 66 | F30: =IF(TRIM(D30)="rate only","ro",IF(ISBLANK(E30)," ",D30*E30)) -> 
A32: 502.02.02.07 | B32: 900 mm Ø | C32: m | D32: =37.785+24.232 -> 62 | F32: =IF(TRIM(D32)="rate only","ro",IF(ISBLANK(E32)," ",D32*E32)) -> 
A34: TOTAL CARRIED FORWARD | F34: =SUM(F2:F33) -> R 0.00
A36: Signature of person authorised to sign the tender: | E36: Date
A39: ITEM | B39: DESCRIPTION | C39: UNIT | D39: QTY | E39: RATE | F39: AMOUNT
A40: TOTAL BROUGHT FORWARD | F40: =F34 -> R 0.00
A42: 502.06 | B42: Supplying and laying portal rectangular
B43: culverts
A45: 502.06.01 | B45: With precast invert slab
A47: 502.06.01.01 | B47: 1800 mm x 600 mm | C47: m | D47: =15+17*2 -> 49 | F47: =IF(TRIM(D47)="rate only","ro",IF(ISBLANK(E47)," ",D47*E47)) -> 
A49: 502.06.01.02 | B49: 2400 mm x 1200 mm | C49: m | D49: =20*2 -> 40 | F49: =IF(TRIM(D49)="rate only","ro",IF(ISBLANK(E49)," ",D49*E49)) -> 
A51: 502.06.01.03 | B51: 3000 mm x 1200 mm | C51: m | D51: =15*2 -> 30 | F51: =IF(TRIM(D51)="rate only","ro",IF(ISBLANK(E51)," ",D51*E51)) -> 
A53: 502.09 | B53: Extra over item 502.06 for end
B54: units for portal and rectangular
B55: culverts with a skew of more
B56: than 20°
A58: 502.09.01 | B58: Complete with precast invert slab
A60: 502.09.01.01 | B60: 1800 mm x 600 mm | C60: m | D60: 49 | F60: =IF(TRIM(D60)="rate only","ro",IF(ISBLANK(E60)," ",D60*E60)) -> 
A62: 502.09.01.02 | B62: 2400 mm x 1200 mm | C62: m | D62: 40 | F62: =IF(TRIM(D62)="rate only","ro",IF(ISBLANK(E62)," ",D62*E62)) -> 
A64: 502.09.01.03 | B64: 3000 mm x 1200 mm | C64: m | D64: 30 | F64: =IF(TRIM(D64)="rate only","ro",IF(ISBLANK(E64)," ",D64*E64)) -> 
A67: TOTAL CARRIED FORWARD | F67: =SUM(F40:F66) -> R 0.00
A69: Signature of person authorised to sign the tender: | E69: Date
A72: ITEM | B72: DESCRIPTION | C72: UNIT | D72: QTY | E72: RATE | F72: AMOUNT
A73: TOTAL BROUGHT FORWARD | F73: =F67 -> R 0.00
A75: B502.10 | B75: Cast in situ concrete
A77: B502.10.02 | B77: Roof slabs for portal or
B78: rectangular culverts, including
B79: formwork to provide Class F1 surface
B80: finish and Class U2 surface finish
B81: for unformed surfaces
A83: B502.10.02.01 | B83: Class 25/19 | C83: m³ | D83: =70*10*0.2 -> 140 | F83: =IF(TRIM(D83)="rate only","ro",IF(ISBLANK(E83)," ",D83*E83)) -> 
A85: 502.10.03 | B85: Inlet and outlet structures, catchpits,
B86: manholes and junction boxes
B87: excluding formwork, but including
B88: U2 surface finish
A90: 502.10.03.02 | B90: Class 25/19 | C90: m³ | D90: =(0.5*1.79*2.81*2*0.2+1.79*10*0.2)*15 -> 69 | F90: =IF(TRIM(D90)="rate only","ro",IF(ISBLANK(E90)," ",D90*E90)) -> 
A92: TOTAL CARRIED FORWARD | F92: =SUM(F73:F91) -> R 0.00
A94: Signature of person authorised to sign the tender: | E94: Date
A97: ITEM | B97: DESCRIPTION | C97: UNIT | D97: QTY | E97: RATE | F97: AMOUNT
A98: TOTAL BROUGHT FORWARD | F98: =F92 -> R 0.00
A100: 502.13 | B100: Welded-steel fabric
A102: 502.13.03 | B102: Reference 888 | C102: kg | D102: =(0.5*1.79*2.81*2*8.88+1.79*10*8.88)*15 -> 3,054 | F102: =IF(TRIM(D102)="rate only","ro",IF(ISBLANK(E102)," ",D102*E102)) -> 
A104: B502.16 | B104: Manholes, catchpits, precast inlet and
B105: outlet structures and junction boxes
B106: complete
A108: B502.16.01 | B108: Concrete Field inlets
A111: B502.16.01.02 | B111: Cast insitu concrete field inlet with concrete | C111: no | D111: 2 | F111: =IF(TRIM(D111)="rate only","ro",IF(ISBLANK(E111)," ",D111*E111)) -> 
B112: ditch, stone pitching and silt trap complete
B113: with cover slabs from 1,5m to 2,0m in depth
A117: TOTAL CARRIED FORWARD | F117: =SUM(F98:F116) -> R 0.00
A119: Signature of person authorised to sign the tender: | E119: Date
A122: ITEM | B122: DESCRIPTION | C122: UNIT | D122: QTY | E122: RATE | F122: AMOUNT
A123: TOTAL BROUGHT FORWARD | F123: =F117 -> R 0.00
A125: B502.16.02 | B125: Brick Field inlets
A127: B502.16.02.01 | B127: Brick inlet field inlet with concrete ditch, | C127: no | D127: 1 | F127: =IF(TRIM(D127)="rate only","ro",IF(ISBLANK(E127)," ",D127*E127)) -> 
B128: stone pitching and silt trap complete with
B129: cover slabs from 1m to 1,5m in depth
A132: B502.16.02.02 | B132: Brick inlet field inlet with concrete ditch, | C132: no | D132: 42 | F132: =IF(TRIM(D132)="rate only","ro",IF(ISBLANK(E132)," ",D132*E132)) -> 
B133: stone pitching and silt trap complete with
B134: cover slabs from 1,5 m to 2,0m in depth
A136: B502.16.02.03 | B136: Brick inlet field inlet with concrete ditch, | C136: no | D136: 1 | F136: =IF(TRIM(D136)="rate only","ro",IF(ISBLANK(E136)," ",D136*E136)) -> 
B137: stone pitching and silt trap complete with
B138: cover slabs from 2,0m to 2,5m in depth
A140: 502.19 | B140: Benching | C140: m² | D140: =1.5*1.5*15 -> 34 | F140: =IF(TRIM(D140)="rate only","ro",IF(ISBLANK(E140)," ",D140*E140)) -> 
A145: TOTAL CARRIED TO SUMMARY | F145: =SUM(F123:F144) -> R 0.00
A147: Signature of person authorised to sign the tender: | E147: Date

Sheet Section 503
A1: ITEM | B1: DESCRIPTION | C1: UNIT | D1: QTY | E1: RATE | F1: AMOUNT
A3: SERIES 5 | B3: DRAINAGE AND EROSION
B4: PROTECTION
A6: Section 503 | B6: Kerbing and Channelling
A8: 503.01 | B8: Concrete kerbing Class 20/19
B9: concrete
B10: (See drawing STD015)
A12: 503.01.01 | B12: SANS 927 Figure 10 | C12: m | D12: =18*2 -> 36 | F12: =IF(TRIM(D12)="rate only","ro",IF(OR(ISBLANK(D12),ISBLANK(E12))," ",D12*E12)) -> 
A14: 503.02 | B14: Concrete kerbing-channelling
B15: combination
B16: (See drawing STD007 - STD015)
A18: 503.02.02 | B18: SANS 927 Barrier kerb (Fig. 3)
B19: with concrete channel | C19: m | D19: =51.68*2 -> 103 | F19: =IF(TRIM(D19)="rate only","ro",IF(ISBLANK(E19)," ",D19*E19)) -> 
A21: 503.03 | B21: Transition sections
B22: (See drawing STD015)
A24: 503.03.01 | B24: SANS 927 Barrier kerb (Fig. 3) | C24: no | D24: 6 | E24: =E12 -> R 0.00 | F24: =IF(TRIM(D24)="rate only","ro",IF(ISBLANK(E24)," ",D24*E24)) -> R 0.00
A29: TOTAL CARRIED TO SUMMARY | F29: =SUM(F2:F28) -> R 0.00
A31: Signature of person authorised to sign the tender: | E31: Date

Sheet Section 504
A1: ITEM | B1: DESCRIPTION | C1: UNIT | D1: QTY | E1: RATE | F1: AMOUNT
A3: SERIES 5 | B3: DRAINAGE AND EROSION
B4: PROTECTION
A6: Section 504 | B6: Open Drains
A8: 504.02 | B8: Mesh Reinforced Concrete chutes
B9: ( Cast insitu 25/19)
A11: 504.02.01 | B11: Discharge from road to the channel | C11: m | D11: =7*20 -> 140 | F11: =IF(TRIM(D11)="rate only","ro",IF(OR(ISBLANK(D11),ISBLANK(E11))," ",D11*E11)) -> 
A13: 504.04 | B13: Channels (Trapezoidal):
A15: 504.04.01 | B15: Trapezoidal Channel Class 25/19 concrete | C15: m | D15: 1,235 | F15: =IF(TRIM(D15)="rate only","ro",IF(ISBLANK(E15)," ",D15*E15)) -> 
B16: as per drawing no 6229 PCE (T1)
B17: maximum width of 1300mm and 500mm
B18: deep and 100mm in thickness
B19: with 150mm dia oPVC filled with no fine
B20: concrete in water logged areas
A25: TOTAL CARRIED FORWARD | F25: =SUM(F2:F24) -> R 0.00
A27: Signature of person authorised to sign the tender: | E27: Date
A30: ITEM | B30: DESCRIPTION | C30: UNIT | D30: QTY | E30: RATE | F30: AMOUNT
A31: TOTAL BROUGHT FORWARD | F31: =F25 -> R 0.00
A32: 504.05 | B32: Construction of chutes, side drains,
B33: channels, inlet and outlet structures,
B34: transition sections and auxiliary
B35: structures (Measured by components)
A37: 504.05.01 | B37: Excavation | C37: m³ | D37: =20*7*1.6*0.2+1435*1.5*2.14 -> 4,651 | F37: =IF(TRIM(D37)="rate only","ro",IF(ISBLANK(E37)," ",D37*E37)) -> 
A39: 504.05.02 | B39: Preparation of excavations for concrete-
B40: lined open drains | C40: m² | D40: =100*2 -> 200 | F40: =IF(TRIM(D40)="rate only","ro",IF(ISBLANK(E40)," ",D40*E40)) -> 
A42: 504.05.03 | B42: Cast in situ concrete for the lining of
B43: of open drains, or open drains
B44: constructed in concrete (concrete class | C44: m³ | D44: =1000*1.5*0.1 -> 150 | F44: =IF(TRIM(D44)="rate only","ro",IF(ISBLANK(E44)," ",D44*E44)) -> 
B45: and type of drain stated. Class U2
B46: surface finish)
A48: 504.05.04 | B48: Formwork for cast in situ concrete
B49: (Class F2 surface finish)
A51: 504.05.04.01 | B51: To vertical sides of open drains
B52: (formwork on internal face only) | C52: m² | D52: =100*0.1*2 -> 20 | F52: =IF(TRIM(D52)="rate only","ro",IF(ISBLANK(E52)," ",D52*E52)) -> 
A54: 504.05.04.02 | B54: To sloping sides of open drains (formwork
B55: on internal face only) | C55: m² | D55: =100*0.1*2 -> 20 | F55: =IF(TRIM(D55)="rate only","ro",IF(ISBLANK(E55)," ",D55*E55)) -> 
A57: 504.05.04.03 | B57: To both internal and external faces of
B58: open drain sides (both sides measured) | C58: m² | D58: =50*0.1*1.5 -> 8 | F58: =IF(TRIM(D58)="rate only","ro",IF(ISBLANK(E58)," ",D58*E58)) -> 
A60: 504.05.04.04 | B60: To ends of slabs | C60: m² | D60: =7*1.5*0.15 -> 2 | F60: =IF(TRIM(D60)="rate only","ro",IF(ISBLANK(E60)," ",D60*E60)) -> 
A62: 504.05.05 | B62: Joints in the concrete lining of open drains | C62: m | D62: =100/4*1.5 -> 38 | F62: =IF(TRIM(D62)="rate only","ro",IF(ISBLANK(E62)," ",D62*E62)) -> 
A64: 504.05.05.01 | B64: Void fomer joints in concrete channels | C64: m | D64: =100/4*1.5+1435/4*2 -> 755 | F64: =IF(TRIM(D64)="rate only","ro",IF(ISBLANK(E64)," ",D64*E64)) -> 
B65: and concrete lined drains
A66: TOTAL CARRIED FORWARD | F66: =SUM(F30:F65) -> R 0.00
A67: Signature of person authorised to sign the tender: | E67: Date
A70: ITEM | B70: DESCRIPTION | C70: UNIT | D70: QTY | E70: RATE | F70: AMOUNT
A71: TOTAL BROUGHT FORWARD | F71: =F66 -> R 0.00
A73: 504.05.06 | B73: Welded-steel fabric
A75: 504.05.06.03 | B75: Reference 395 | C75: kg | D75: =100*1.5*3.95+140*1*3.95 -> 1,146 | F75: =IF(TRIM(D75)="rate only","ro",IF(ISBLANK(E75)," ",D75*E75)) -> 
A77: 504.06 | B77: Polyethylene sheeting (0,150 mm thick)
B78: for concrete-lined open drains | C78: m² | D78: =100*1.7 -> 170 | F78: =IF(TRIM(D78)="rate only","ro",IF(ISBLANK(E78)," ",D78*E78)) -> 
A80: 504.07 | B80: Excavation in hard material
B81: (Extra over items 504.01, 504.02
B82: 504.03, 504.04 and 504.05) | C82: m³ | D82: =D37*20% -> 930 | F82: =IF(TRIM(D82)="rate only","ro",IF(ISBLANK(E82)," ",D82*E82)) -> 
A84: 504.08 | B84: Hand excavations (Extra over subitem
B85: 504.05.01) | C85: m³ | D85: =D37*10% -> 465 | F85: =IF(TRIM(D85)="rate only","ro",IF(ISBLANK(E85)," ",D85*E85)) -> 
A88: TOTAL CARRIED TO SUMMARY | F88: =SUM(F76:F87) -> R 0.00
A90: Signature of person authorised to sign the tender: | E90: Date

Sheet Section 505
A1: ITEM | B1: DESCRIPTION | C1: UNIT | D1: QTY | E1: RATE | F1: AMOUNT
A3: SERIES 5 | B3: DRAINAGE AND EROSION
B4: PROTECTION
A6: Section 505 | B6: Erosion Protection
A8: 505.01 | B8: Foundation trench excavation and
B9: backfilling
A11: 505.01.02 | B11: In all other classes of material | C11: m³ | D11: =3.006*0.1*0.1*46 -> 1 | F11: =IF(TRIM(D11)="rate only","ro",IF(ISBLANK(E11)," ",D11*E11)) -> 
A14: LI 505.02 | B14: Surface preparation for the bedding
B15: of gabions | C15: m² | D15: =3.006*0.5*46 -> 69 | F15: =IF(TRIM(D15)="rate only","ro",IF(ISBLANK(E15)," ",D15*E15)) -> 
A17: 505.03 | B17: Gabions
A19: 505.03.01 | B19: Gabion boxes, mesh type 80 with
B20: 2.7mm Class A galvanised wire -
A22: 505.03.01.01 | B22: 1.0m x 1.0m x 1.0m | C22: m³ | D22: =0.5*10*0.5*5 -> 13 | F22: =IF(TRIM(D22)="rate only","ro",IF(ISBLANK(E22)," ",D22*E22)) -> 
A24: 505.03.02 | B24: Gabion matress, mesh type 80 with
B25: 2.7mm Class A galvanised wire -
A27: 505.03.02.01 | B27: 6.0m x 0.3m x 0.3m | C27: m³ | D27: =6*10*0.3*5 -> 90 | F27: =IF(TRIM(D27)="rate only","ro",IF(ISBLANK(E27)," ",D27*E27)) -> 
A31: TOTAL CARRIED FORWARD | F31: =SUM(F2:F30) -> R 0.00
A33: Signature of person authorised to sign the tender: | E33: Date
A36: ITEM | B36: DESCRIPTION | C36: UNIT | D36: QTY | E36: RATE | F36: AMOUNT
A37: TOTAL BROUGHT FORWARD | F37: =F31 -> R 0.00
A40: 505.04 | B40: Extra over item 505.03 for supplying
B41: gabions with PVC-coated wire
A43: 505.04.01 | B43: 3.7mm PVC thickness | C43: m³ | D43: =D22 -> 13 | F43: =IF(TRIM(D43)="rate only","ro",IF(ISBLANK(E43)," ",D43*E43)) -> 
A45: 505.05 | B45: Filter fabric for gabions and riprap
A47: 505.05.01 | B47: Type A4, or U2 (1.6mm thck) | C47: m² | D47: =6.6*10.6+1.5*10+0.5*0.5*2 -> 85 | F47: =IF(TRIM(D47)="rate only","ro",IF(ISBLANK(E47)," ",D47*E47)) -> 
A49: 505.06 | B49: Stone pitching
A51: LI 505.06.02 | B51: Grouted pitching | C51: m² | D51: =3.006*3.006*46 -> 416 | F51: =IF(TRIM(D51)="rate only","ro",IF(ISBLANK(E51)," ",D51*E51)) -> 
A53: 505.10 | B53: Concrete in edge beams and
B54: foundation trenches
A56: 505.10.02 | B56: Class 25/19 concrete | C56: m³ | D56: =51*0.15*0.3*2 -> 5 | F56: =IF(TRIM(D56)="rate only","ro",IF(ISBLANK(E56)," ",D56*E56)) -> 
A64: TOTAL CARRIED TO SUMMARY | F64: =SUM(F53:F63) -> R 0.00
A66: Signature of person authorised to sign the tender: | E66: Date

Sheet Section 601
A1: ITEM | B1: DESCRIPTION | C1: UNIT | D1: QTY | E1: RATE | F1: AMOUNT
A3: SERIES 6 | B3: ROADS AND PARKING AREAS
A5: Section 601 | B5: Gravel Pavement Layers
A8: B601.02 | B8: Gravel layers constructed from
B9: material obtained from excavations
A11: 601.02.01 | B11: Subgrade
A13: 601.02.01.02 | B13: Lower Selected layer compacted to 93%
B14: of modified AASHTO density | C14: m³ | D14: =1435*10*0.15+61 -> 2,214 | F14: =IF(TRIM(D14)="rate only","ro",IF(ISBLANK(E14)," ",D14*E14)) -> 
A16: 601.02.01.03 | B16: Upper Selected Layer compacted to 95%
B17: of modified AASHTO density | C17: m³ | D17: =D14 -> 2,214 | E17: =E14 -> R 0.00 | F17: =IF(TRIM(D17)="rate only","ro",IF(ISBLANK(E17)," ",D17*E17)) -> R 0.00
A19: B601.03 | B19: Gravel layers constructed from material
B20: obtained commercial sources:
A22: 601.03.02 | B22: C3 Subbase Layer
A24: 601.03.02.02 | B24: Compacted to 97% of modified
B25: AASHTO density | C25: m³ | D25: =1435*10*0.2+61 -> 2,931 | F25: =IF(TRIM(D25)="rate only","ro",IF(ISBLANK(E25)," ",D25*E25)) -> 
A27: TOTAL CARRIED FORWARD | F27: =SUM(F2:F26) -> R 0.00
A29: Signature of person authorised to sign the tender: | E29: Date
A32: ITEM | B32: DESCRIPTION | C32: UNIT | D32: QTY | E32: RATE | F32: AMOUNT
A33: TOTAL BROUGHT FORWARD | F33: =F27 -> R 0.00
A35: 601.04 | B35: Extra over item 601.02 for obtaining
B36: material from
A38: 601.04.01 | B38: Intermediate excavations | C38: m³ | D38: ='Section 201'!D7*20% -> 593 | F38: =IF(TRIM(D38)="rate only","ro",IF(ISBLANK(E38)," ",D38*E38)) -> 
A40: 601.04.02 | B40: Hard excavations | C40: m³ | D40: 1,438 | F40: =IF(TRIM(D40)="rate only","ro",IF(ISBLANK(E40)," ",D40*E40)) -> 
A42: 601.06 | B42: Extra over Item 601.02 and 61.03 for using
B43: G5 material material from sources to be
B44: supplied by the Contractor
A46: 601.06.02 | B46: Subbase
A48: 601.06.02.01 | B48: Compacted to 95% of modified
B49: AASHTO density | C49: m³ | D49: =1435*10*0.2+61 -> 2,931 | F49: =IF(TRIM(D49)="rate only","ro",IF(ISBLANK(E49)," ",D49*E49)) -> 
A52: TOTAL CARRIED TO SUMMARY | F52: =SUM(F33:F51) -> R 0.00
A54: Signature of person authorised to sign the tender: | E54: Date

Sheet Section 602
A1: ITEM | B1: DESCRIPTION | C1: UNIT | D1: QTY | E1: RATE | F1: AMOUNT
A3: SERIES 6 | B3: ROADS AND PARKING AREAS
A5: Section 602 | B5: Crushed-stone Pavement Layers
A7: 602.01 | B7: Crushed-stone base constructed
B8: with material obtained from
A10: 602.01.01 | B10: Commercial sources
A12: 602.01.01.01 | B12: G1 material compacted to 86% of
B13: Apparent density | C13: m³ | D13: =1435*6.6*0.15 -> 1,421 | F13: =E13*D13 -> R 0.00
A15: 602.04 | B15: Additional compaction
A17: 602.04.01 | B17: Extra over sub items 602.01.01.01 | C17: m³ | D17: =D13 -> 1,421 | F17: =E17*D17 -> R 0.00
B18: 602.01.02.01, 602.02.01.01 and
B19: 602.02.02.01 for compaction to
B20: 88% of apparent density
A37: TOTAL CARRIED TO SUMMARY | F37: =SUM(F2:F36) -> R 0.00
A39: Signature of person authorised to sign the tender: | E39: Date

Sheet Section 603
A1: ITEM | B1: DESCRIPTION | C1: UNIT | D1: QTY | E1: RATE | F1: AMOUNT
A3: SERIES 6 | B3: ROADS AND PARKING AREAS
A5: Section 603 | B5: Unpaved areas
A7: 603.01 | B7: Compacted gravel shoulder or gravel
B8: wearing course to 93% of modified
B9: AASHTO density
A11: 603.01.01 | B11: Shoulder | C11: m³ | D11: =1435*3.5*0.15*2 -> 1,507 | F11: =IF(TRIM(D11)="rate only","ro",IF(OR(ISBLANK(D11),ISBLANK(E11))," ",D11*E11)) -> 
A13: B603.02 | B13: Extra over Item 603.01 for borrow
B14: material from stockpile to be
B15: supplied by the Contractor | C15: m³ | D15: =D11 -> 1,507 | F15: =IF(TRIM(D15)="rate only","ro",IF(ISBLANK(E15)," ",D15*E15)) -> 
A25: TOTAL CARRIED TO SUMMARY | F25: =SUM(F2:F24) -> R 0.00
A27: Signature of person authorised to sign the tender: | E27: Date

Sheet Section 604
A1: ITEM | B1: DESCRIPTION | C1: UNIT | D1: QTY | E1: RATE | F1: AMOUNT
A3: SERIES 6 | B3: ROADS AND PARKING AREAS
A5: Section 604 | B5: Stabilization
A7: 604.01 | B7: Chemical stabilization extra over
B8: unstabilized compacted layers
A10: 604.01.03 | B10: Subbase | C10: m³ | D10: ='Section 601'!D25 -> 2,931 | F10: =IF(TRIM(D10)="rate only","ro",IF(ISBLANK(E10)," ",D10*E10)) -> 
A12: 604.02 | B12: Chemical stabilizing agent
A14: 604.02.01 | B14: Cement | C14: t | D14: =4%*D10*2200/1000 -> 258 | F14: =IF(TRIM(D14)="rate only","ro",IF(ISBLANK(E14)," ",D14*E14)) -> 
A22: TOTAL CARRIED TO SUMMARY | F22: =SUM(F2:F21) -> R 0.00
A24: Signature of person authorised to sign the tender: | E24: Date

Sheet Section 605
A1: ITEM | B1: DESCRIPTION | C1: UNIT | D1: QTY | E1: RATE | F1: AMOUNT
A3: SERIES 6 | B3: ROADS AND PARKING AREAS
A5: Section 605 | B5: Prime Coat
A7: 605.01 | B7: Prime coat
A9: 605.01.02 | B9: MC-30 cut-back bitumen | C9: ℓ | D9: =1435*10*0.75+30*6.7*0.75 -> 10,913 | F9: =IF(TRIM(D9)="rate only","ro",IF(OR(ISBLANK(D9),ISBLANK(E9))," ",D9*E9)) -> 
A11: 605.02 | B11: Aggregate for blinding | C11: m² | D11: 158 | F11: =IF(TRIM(D11)="rate only","ro",IF(ISBLANK(E11)," ",D11*E11)) -> 
A25: TOTAL CARRIED TO SUMMARY | F25: =SUM(F2:F24) -> R 0.00
A27: Signature of person authorised to sign the tender: | E27: Date

Sheet Section 606
A1: ITEM | B1: DESCRIPTION | C1: UNIT | D1: QTY | E1: RATE | F1: AMOUNT
A3: 606.02 | B3: Asphalt surfacing
A5: 606.02.01 | B5: Continuously graded (grade stated) 30mm | C5: t | D5: 950 | F5: =IF(TRIM(D5)="rate only","ro",IF(ISBLANK(E5)," ",D5*E5)) -> 
A7: 606.05 | B7: Tack coat of 30% stable grade
B8: emulsion | C8: ℓ | D8: =1435*10*0.55+30*6.7*0.55 -> 8,003 | F8: =IF(TRIM(D8)="rate only","ro",IF(ISBLANK(E8)," ",D8*E8)) -> 
A10: 606.06 | B10: Binder variations
A12: 606.06.01 | B12: Penetration grade bitumens | C12: t | D12: 5 | F12: =IF(TRIM(D12)="rate only","ro",IF(ISBLANK(E12)," ",D12*E12)) -> 
A18: TOTAL CARRIED FORWARD | F18: =SUM(F3:F17) -> R 0.00
A20: Signature of person authorised to sign the tender: | E20: Date
A23: ITEM | B23: DESCRIPTION | C23: UNIT | D23: QTY | E23: RATE | F23: AMOUNT
A24: TOTAL BROUGHT FORWARD | F24: =F18 -> R 0.00
A26: 606.08 | B26: Trial sections (30 mm thick) | C26: m² | D26: =200*3.2 -> 640 | F26: =IF(TRIM(D26)="rate only","ro",IF(ISBLANK(E26)," ",D26*E26)) -> 
A28: 606.09 | B28: 100mm cores in asphalt paving | C28: no | D28: 20 | F28: =IF(TRIM(D28)="rate only","ro",IF(ISBLANK(E28)," ",D28*E28)) -> 
A30: 606.10 | B30: Saw-cutting of asphalt, asphalt base
B31: or paving (50mm) | C31: m | D31: =51*2 -> 102 | F31: =IF(TRIM(D31)="rate only","ro",IF(ISBLANK(E31)," ",D31*E31)) -> 
A34: B606.11 | B34: Speed Humps as per drawing No 6229 | C34: No | D34: 2 | F34: =IF(TRIM(D34)="rate only","ro",IF(ISBLANK(E34)," ",D34*E34)) -> 
B35: PCE (T1) complete with road makings
B36: and signage
A50: TOTAL CARRIED TO SUMMARY | F50: =SUM(F24:F49) -> R 0.00
A52: Signature of person authorised to sign the tender: | E52: Date

Sheet Section 607 (hidden)
A1: ITEM | B1: DESCRIPTION | C1: UNIT | D1: QTY | E1: RATE | F1: AMOUNT
A3: SERIES 6 | B3: ROADS AND PARKING AREAS
A5: Section 607 | B5: Bituminous Surface Treatments
A7: 607.01 | B7: Double-seal surface treatment using -
A9: 607.01.01 | B9: 19,0 mm and 9,5 mm aggregate
B10: (state types and rates of binder to
B11: be used) | C11: m² | D11: Rate only | F11: =IF(TRIM(D11)="rate only","ro",IF(OR(ISBLANK(D11),ISBLANK(E11))," ",D11*E11)) -> ro
A16: 607.01.02 | B16: 13.2mm and 6.7mm aggregate
B17: (state types and rates of binder to
B18: be used) | C18: m² | D18: Rate only | F18: =IF(TRIM(D18)="rate only","ro",IF(ISBLANK(E18)," ",D18*E18)) -> ro
A23: 607.02 | B23: Bituminous surface treatment with
B24: 19,0 mm and slurry using -
A26: 607.02.01 | B26: RTH 45/50 or RTL 45/50 road tar as a
B27: tack coat and 150/200 penetration-grade
B28: bitumen in the penetration spray | C28: m² | D28: Rate only | F28: =IF(TRIM(D28)="rate only","ro",IF(ISBLANK(E28)," ",D28*E28)) -> ro
A30: 607.02.02 | B30: 150/200 penetration-grade bitumen in
B31: both applications | C31: m² | D31: Rate only | F31: =IF(TRIM(D31)="rate only","ro",IF(ISBLANK(E31)," ",D31*E31)) -> ro
A33: 607.02.03 | B33: 150/200 penegtration-grade bitumen in
B34: the tack coat and 60% or 65% spray-grade
B35: emulsion in the penetration spray | C35: m² | D35: Rate only | F35: =IF(TRIM(D35)="rate only","ro",IF(ISBLANK(E35)," ",D35*E35)) -> ro
A37: 607.02.04 | B37: Etc for other combinations of binders
A49: TOTAL CARRIED FORWARD | F49: =SUM(F2:F48) -> R 0.00
A51: Signature of person authorised to sign the tender: | E51: Date
A54: ITEM | B54: DESCRIPTION | C54: UNIT | D54: QTY | E54: RATE | F54: AMOUNT
A55: TOTAL BROUGHT FORWARD | F55: =F49 -> R 0.00
A57: 607.03 | B57: Bituminous surface treatment with
B58: 13.2mm aggregate and slurry-seal
B59: using-
A61: 607.03.01 | B61: RTH 45/50 or RTL 45/50 road tar as a
B62: tack coat and 60% or 65% emulsion in
B63: the penetration spray | C63: m² | D63: Rate only | F63: =IF(TRIM(D63)="rate only","ro",IF(ISBLANK(E63)," ",D63*E63)) -> ro
A65: 607.03.02 | B65: 150/200 penetration-grade bitumen
B66: in the tack coat and 60% or 65%
B67: emulsion in the penetration spray | C67: m² | D67: Rate only | F67: =IF(TRIM(D67)="rate only","ro",IF(ISBLANK(E67)," ",D67*E67)) -> ro
A69: 607.03.03 | B69: Etc for other combinations of binder
B70: if required
A75: 607.04 | B75: Bituminous binder variations
A77: 607.04.01 | B77: Road tar RTH 45/50 or RTL 45/50 | C77: ℓ | D77: Rate only | F77: =IF(TRIM(D77)="rate only","ro",IF(ISBLANK(E77)," ",D77*E77)) -> ro
A79: 607.04.02 | B79: 150/200 penetration-grade bitumen | C79: ℓ | D79: Rate only | F79: =IF(TRIM(D79)="rate only","ro",IF(ISBLANK(E79)," ",D79*E79)) -> ro
A81: 607.04.03 | B81: 65% spray-grade emulsion | C81: ℓ | D81: Rate only | F81: =IF(TRIM(D81)="rate only","ro",IF(ISBLANK(E81)," ",D81*E81)) -> ro
A83: 607.04.04 | B83: 60% spray-grade emulsion | C83: ℓ | D83: Rate only | F83: =IF(TRIM(D83)="rate only","ro",IF(ISBLANK(E83)," ",D83*E83)) -> ro
A85: 607.04.05 | B85: 30% anionic spray-grade emulsion | C85: ℓ | D85: Rate only | F85: =IF(TRIM(D85)="rate only","ro",IF(ISBLANK(E85)," ",D85*E85)) -> ro
A87: 607.04.06 | B87: Anionic slurry-seal emulsion
B88: (60% bitumen) | C88: ℓ | D88: Rate only | F88: =IF(TRIM(D88)="rate only","ro",IF(ISBLANK(E88)," ",D88*E88)) -> ro
A91: 607.05 | B91: Aggregate variations
A93: 607.05.01 | B93: 19,0 mm aggregate | C93: m³ | D93: Rate only | F93: =IF(TRIM(D93)="rate only","ro",IF(ISBLANK(E93)," ",D93*E93)) -> ro
A95: 607.05.02 | B95: 13,2 mm aggregate | C95: m³ | D95: Rate only | F95: =IF(TRIM(D95)="rate only","ro",IF(ISBLANK(E95)," ",D95*E95)) -> ro
A97: 607.05.03 | B97: 9,5 mm aggregate | C97: m³ | D97: Rate only | F97: =IF(TRIM(D97)="rate only","ro",IF(ISBLANK(E97)," ",D97*E97)) -> ro
A99: 607.05.04 | B99: 6,7 mm aggregate | C99: m³ | D99: Rate only | F99: =IF(TRIM(D99)="rate only","ro",IF(ISBLANK(E99)," ",D99*E99)) -> ro
A101: TOTAL CARRIED FORWARD | F101: =SUM(F54:F100) -> R 0.00
A103: Signature of person authorised to sign the tender: | E103: Date
A106: ITEM | B106: DESCRIPTION | C106: UNIT | D106: QTY | E106: RATE | F106: AMOUNT
A107: TOTAL BROUGHT FORWARD | F107: =F101 -> R 0.00
A109: 607.06 | B109: Application of fog spray consisting of
A111: 607.06.01 | B111: 60% spray-grade emulsion | C111: ℓ | D111: Rate only | F111: =IF(TRIM(D111)="rate only","ro",IF(ISBLANK(E111)," ",D111*E111)) -> ro
A113: 607.06.02 | B113: 30% spray-grade emulsion | C113: ℓ | D113: Rate only | F113: =IF(TRIM(D113)="rate only","ro",IF(ISBLANK(E113)," ",D113*E113)) -> ro
A116: 607.07 | B116: Variation in the rate of application
B117: of slurry seal | C117: m³ | D117: Rate only | F117: =IF(TRIM(D117)="rate only","ro",IF(ISBLANK(E117)," ",D117*E117)) -> ro
A120: 607.08 | B120: Precoating of aggregate for second
B121: application (indicate precoating fluid) | C121: m³ | D121: Rate only | F121: =IF(TRIM(D121)="rate only","ro",IF(ISBLANK(E121)," ",D121*E121)) -> ro
A124: 607.08 | B124: Treating areas inaccessible to mechanical
B125: eqiupment with premixed bituminous
B126: material
A128: 607.08.01 | B128: 19,0 mm thick | C128: m² | D128: Rate only | F128: =IF(TRIM(D128)="rate only","ro",IF(ISBLANK(E128)," ",D128*E128)) -> ro
A130: 607.08.02 | B130: 13,2 mm thick | C130: m² | D130: Rate only | F130: =IF(TRIM(D130)="rate only","ro",IF(ISBLANK(E130)," ",D130*E130)) -> ro
A133: 607.10 | B133: Correction for bleeding
A135: 607.10.01 | B135: Aggregate
A137: 607.10.01.01 | B137: 13,2 mm | C137: m³ | D137: Rate only | F137: =IF(TRIM(D137)="rate only","ro",IF(ISBLANK(E137)," ",D137*E137)) -> ro
A139: 607.10.01.02 | B139: 9,5 mm | C139: m³ | D139: Rate only | F139: =IF(TRIM(D139)="rate only","ro",IF(ISBLANK(E139)," ",D139*E139)) -> ro
A141: 607.10.01.03 | B141: 4,75 mm | C141: m³ | D141: Rate only | F141: =IF(TRIM(D141)="rate only","ro",IF(ISBLANK(E141)," ",D141*E141)) -> ro
A144: 607.10.02 | B144: Precoating of aggregate | C144: m³ | D144: Rate only | F144: =IF(TRIM(D144)="rate only","ro",IF(ISBLANK(E144)," ",D144*E144)) -> ro
A146: 607.10.03 | B146: Treatment of surface for bleeding | C146: m² | D146: Rate only | F146: =IF(TRIM(D146)="rate only","ro",IF(ISBLANK(E146)," ",D146*E146)) -> ro
A153: TOTAL CARRIED TO SUMMARY | F153: =SUM(F107:F152) -> R 0.00
A155: Signature of person authorised to sign the tender: | E155: Date

Sheet Section 608 (hidden)
A1: ITEM | B1: DESCRIPTION | C1: UNIT | D1: QTY | E1: RATE | F1: AMOUNT
A3: SERIES 6 | B3: ROADS AND PARKING AREAS
A5: Section 608 | B5: Road and Surfacing Rehabilitation
B6: and Overlay Construction
A8: 608.01 | B8: Replacing failed layers
A10: 608.01.01 | B10: Excavation in existing pavements | C10: m³ | D10: Rate only | F10: =IF(TRIM(D10)="rate only","ro",IF(OR(ISBLANK(D10),ISBLANK(E10))," ",D10*E10)) -> ro
A12: 608.01.02 | B12: Compacting the floor of excavations | C12: m² | D12: Rate only | F12: =IF(TRIM(D12)="rate only","ro",IF(ISBLANK(E12)," ",D12*E12)) -> ro
A14: 608.01.03 | B14: Backfilling of excavation with:
A16: 608.01.03.01 | B16: Chemically-stabilized gravel | C16: m³ | D16: Rate only | F16: =IF(TRIM(D16)="rate only","ro",IF(ISBLANK(E16)," ",D16*E16)) -> ro
A18: 608.01.03.02 | B18: Emulsion-treated crushed stone | C18: m³ | D18: Rate only | F18: =IF(TRIM(D18)="rate only","ro",IF(ISBLANK(E18)," ",D18*E18)) -> ro
A20: 608.01.03.03 | B20: Asphalt base | C20: t | D20: Rate only | F20: =IF(TRIM(D20)="rate only","ro",IF(ISBLANK(E20)," ",D20*E20)) -> ro
A22: 608.01.03.04 | B22: Asphalt surfacing | C22: t | D22: Rate only | F22: =IF(TRIM(D22)="rate only","ro",IF(ISBLANK(E22)," ",D22*E22)) -> ro
A25: 608.02 | B25: Repairing potholes and local pavement
B26: layer failures with asphalt | C26: t | D26: Rate only | F26: =IF(TRIM(D26)="rate only","ro",IF(ISBLANK(E26)," ",D26*E26)) -> ro
A28: 608.03 | B28: Treatment type 1 (fog or mist spray)
A30: 608.03.01 | B30: 30% spray-grade emulsion | C30: ℓ | D30: Rate only | F30: =IF(TRIM(D30)="rate only","ro",IF(ISBLANK(E30)," ",D30*E30)) -> ro
A32: 608.03.02 | B32: 60% spray-grade emulsion | C32: ℓ | D32: Rate only | F32: =IF(TRIM(D32)="rate only","ro",IF(ISBLANK(E32)," ",D32*E32)) -> ro
A35: 608.04 | B35: Treatment type 2 (crusher-sand seal)
B36: using:
A38: 608.04.01 | B38: 60% spray-grade emulsion | C38: ℓ | D38: Rate only | F38: =IF(TRIM(D38)="rate only","ro",IF(ISBLANK(E38)," ",D38*E38)) -> ro
B40: An application of doubly washed slurry-
B41: seal aggregate | C41: m³ | D41: Rate only | F41: =IF(TRIM(D41)="rate only","ro",IF(ISBLANK(E41)," ",D41*E41)) -> ro
A49: TOTAL CARRIED FORWARD | F49: =SUM(F2:F48) -> R 0.00
A51: Signature of person authorised to sign the tender: | E51: Date
A54: ITEM | B54: DESCRIPTION | C54: UNIT | D54: QTY | E54: RATE | F54: AMOUNT
A55: TOTAL BROUGHT FORWARD | F55: =F49 -> R 0.00
A57: 608.05 | B57: Treatment type 3 (slurry seal)
A59: 608.05.01 | B59: Tack coat of 30% stable-grade emulsion | C59: ℓ | D59: Rate only | F59: =IF(TRIM(D59)="rate only","ro",IF(ISBLANK(E59)," ",D59*E59)) -> ro
A61: 608.05.02 | B61: Slurry seal applied by hand | C61: m³ | D61: Rate only | F61: =IF(TRIM(D61)="rate only","ro",IF(ISBLANK(E61)," ",D61*E61)) -> ro
A63: 608.05.03 | B63: Slurry seal applied by spreader box | C63: m² | D63: Rate only | F63: =IF(TRIM(D63)="rate only","ro",IF(ISBLANK(E63)," ",D63*E63)) -> ro
A66: 608.06 | B66: Variation in rate of application of
B67: slurry seal (applicable to item
B68: 608.05.03 only) | C68: m³ | D68: Rate only | F68: =IF(TRIM(D68)="rate only","ro",IF(ISBLANK(E68)," ",D68*E68)) -> ro
A71: 608.07 | B71: Treatment type 4
A73: 608.07.01 | B73: Tack coat of 30%-stable-grade emulsion | C73: ℓ | D73: Rate only | F73: =IF(TRIM(D73)="rate only","ro",IF(ISBLANK(E73)," ",D73*E73)) -> ro
A75: 608.07.02 | B75: Continuously-graded asphalt | C75: t | D75: Rate only | F75: =IF(TRIM(D75)="rate only","ro",IF(ISBLANK(E75)," ",D75*E75)) -> ro
A78: 608.08 | B78: Treatment type 5
A80: 608.08.01 | B80: Trimming the edges of existing surfacing | C80: m | D80: Rate only | F80: =IF(TRIM(D80)="rate only","ro",IF(ISBLANK(E80)," ",D80*E80)) -> ro
A82: 608.08.02 | B82: Reconstructing edges using continuously-
B83: graded asphalt | C83: t | D83: Rate only | F83: =IF(TRIM(D83)="rate only","ro",IF(ISBLANK(E83)," ",D83*E83)) -> ro
A86: 608.09 | B86: Treatment type 6 (crack sealing)
A88: 608.089.01 | B88: Cleaning the cracks with compressed
B89: air | C89: m² or m | D89: Rate only | F89: =IF(TRIM(D89)="rate only","ro",IF(ISBLANK(E89)," ",D89*E89)) -> ro
A91: 608.09.02 | B91: Applying bituminous binders for
B92: sealing cracks
A94: 608.09.02.01 | B94: MSP/1 or similar prime | C94: ℓ | D94: Rate only | F94: =IF(TRIM(D94)="rate only","ro",IF(ISBLANK(E94)," ",D94*E94)) -> ro
A96: 608.09.02.02 | B96: Anionic stable-grade emulsion mixed
B97: with synthetic modifiers | C97: ℓ | D97: Rate only | F97: =IF(TRIM(D97)="rate only","ro",IF(ISBLANK(E97)," ",D97*E97)) -> ro
A101: TOTAL CARRIED FORWARD | F101: =SUM(F54:F100) -> R 0.00
A103: Signature of person authorised to sign the tender: | E103: Date
A106: ITEM | B106: DESCRIPTION | C106: UNIT | D106: QTY | E106: RATE | F106: AMOUNT
A107: TOTAL BROUGHT FORWARD | F107: =F101 -> R 0.00
A109: 608.09.02.03 | B109: Hot bitumen rubber | C109: ℓ | D109: Rate only | F109: =IF(TRIM(D109)="rate only","ro",IF(ISBLANK(E109)," ",D109*E109)) -> ro
A111: 608.09.02.04 | B111: SV250 plus 2 parts of diesel oil | C111: ℓ | D111: Rate only | F111: =IF(TRIM(D111)="rate only","ro",IF(ISBLANK(E111)," ",D111*E111)) -> ro
A114: 608.09.03 | B114: Rolling the cracks | C114: m² or m | D114: Rate only | F114: =IF(TRIM(D114)="rate only","ro",IF(ISBLANK(E114)," ",D114*E114)) -> ro
A117: 608.10 | B117: Single-seal surface treatment where
B118: 80/100 oenetration grade bitumen
B119: is used -
A121: 608.10.01 | B121: with 6,7 mm aggregate | C121: m² | D121: Rate only | F121: =IF(TRIM(D121)="rate only","ro",IF(ISBLANK(E121)," ",D121*E121)) -> ro
A123: 608.10.02 | B123: with 9,5 mm aggregate | C123: m² | D123: Rate only | F123: =IF(TRIM(D123)="rate only","ro",IF(ISBLANK(E123)," ",D123*E123)) -> ro
A125: 308.10.03 | B125: with 13,2 mm aggregate | C125: m² | D125: Rate only | F125: =IF(TRIM(D125)="rate only","ro",IF(ISBLANK(E125)," ",D125*E125)) -> ro
A128: 608.11 | B128: Single-seal surface treatment with
B129: bitumen rubber binder and 13,2 mm
B130: aggregate | C130: m² | D130: Rate only | F130: =IF(TRIM(D130)="rate only","ro",IF(ISBLANK(E130)," ",D130*E130)) -> ro
A132: 608.12 | B132: Bituminous binder variations
A134: 608.12.01 | B134: 80/100 penetration-grade bitumen | C134: ℓ | D134: Rate only | F134: =IF(TRIM(D134)="rate only","ro",IF(ISBLANK(E134)," ",D134*E134)) -> ro
A136: 608.12.02 | B136: 65% spray-grade emulsion | C136: ℓ | D136: Rate only | F136: =IF(TRIM(D136)="rate only","ro",IF(ISBLANK(E136)," ",D136*E136)) -> ro
A138: 608.12.03 | B138: 60% spray-grade emulsion | C138: ℓ | D138: Rate only | F138: =IF(TRIM(D138)="rate only","ro",IF(ISBLANK(E138)," ",D138*E138)) -> ro
A140: 608.12.04 | B140: PVC tar | C140: ℓ | D140: Rate only | F140: =IF(TRIM(D140)="rate only","ro",IF(ISBLANK(E140)," ",D140*E140)) -> ro
A142: 608.12.05 | B142: Precoating fluid | C142: ℓ | D142: Rate only | F142: =IF(TRIM(D142)="rate only","ro",IF(ISBLANK(E142)," ",D142*E142)) -> ro
A144: 608.12.06 | B144: Bitumen rubber | C144: ℓ | D144: Rate only | F144: =IF(TRIM(D144)="rate only","ro",IF(ISBLANK(E144)," ",D144*E144)) -> ro
A153: TOTAL CARRIED FORWARD | F153: =SUM(F106:F152) -> R 0.00
A155: Signature of person authorised to sign the tender: | E155: Date
A158: ITEM | B158: DESCRIPTION | C158: UNIT | D158: QTY | E158: RATE | F158: AMOUNT
A159: TOTAL BROUGHT FORWARD | F159: =F153 -> R 0.00
A161: 608.13 | B161: Aggregate variations
A163: 608.13.01 | B163: 6,7 mm aggregate | C163: m³ | D163: Rate only | F163: =IF(TRIM(D163)="rate only","ro",IF(ISBLANK(E163)," ",D163*E163)) -> ro
A165: 608.13.02 | B165: 9,5 mm aggregate | C165: m³ | D165: Rate only | F165: =IF(TRIM(D165)="rate only","ro",IF(ISBLANK(E165)," ",D165*E165)) -> ro
A167: 608.13.03 | B167: 13,2 mm aggregate | C167: m³ | D167: Rate only | F167: =IF(TRIM(D167)="rate only","ro",IF(ISBLANK(E167)," ",D167*E167)) -> ro
A170: 608.14 | B170: Application of fog spray
A172: 608.14.01 | B172: 60% spray-grade emulsion | C172: ℓ | D172: Rate only | F172: =IF(TRIM(D172)="rate only","ro",IF(ISBLANK(E172)," ",D172*E172)) -> ro
A174: 608.14.02 | B174: 30% spray-grade emulsion | C174: ℓ | D174: Rate only | F174: =IF(TRIM(D174)="rate only","ro",IF(ISBLANK(E174)," ",D174*E174)) -> ro
A177: 608.15 | B177: Precoating of aggregate
B178: (indicate precoating fluid) | C178: m³ | D178: Rate only | F178: =IF(TRIM(D178)="rate only","ro",IF(ISBLANK(E178)," ",D178*E178)) -> ro
A205: TOTAL CARRIED TO SUMMARY | F205: =SUM(F159:F204) -> R 0.00
A207: Signature of person authorised to sign the tender: | E207: Date

Sheet Section 609
A1: ITEM | B1: DESCRIPTION | C1: UNIT | D1: QTY | E1: RATE | F1: AMOUNT
A3: SERIES 6 | B3: ROADS AND PARKING AREAS
A5: Section 609 | B5: Segmented Paving
A7: 609.01 | B7: Construction of segmental block
B8: paving made from -
A10: LI 609.01.01 | B10: 60mm Type S-A, Class 25 gray
B11: precast blocks with 20mm bedding sand | C11: m² | D11: =1.5*15*2 -> 45 | F11: =IF(TRIM(D11)="rate only","ro",IF(OR(ISBLANK(D11),ISBLANK(E11))," ",D11*E11)) -> 
A13: LI 609.01.03 | B13: 80mm Type S-A, Class 25 gray
B14: precast blocks with 20mm bedding sand | C14: m² | D14: =(0.5*18*3.5*2+3.5*15)*10 -> 1,155 | F14: =IF(TRIM(D14)="rate only","ro",IF(ISBLANK(E14)," ",D14*E14)) -> 
A16: 609.03 | B16: The construction of edge
B17: restraints with
A19: 609.03.02 | B19: In situ concrete according to drawing
B20: no 6229 PCE 216 (T1) class 20/19 | C20: m³ | D20: =1435*0.18*0.25*2 -> 129 | F20: =IF(TRIM(D20)="rate only","ro",IF(ISBLANK(E20)," ",D20*E20)) -> 
A23: TOTAL CARRIED TO SUMMARY | F23: =SUM(F16:F22) -> R 0.00
A25: Signature of person authorised to sign the tender: | E25: Date

Sheet Section 610 (hidden)
A1: ITEM | B1: DESCRIPTION | C1: UNIT | D1: QTY | E1: RATE | F1: AMOUNT
A3: SERIES 6 | B3: ROADS AND PARKING AREAS
A5: Section 610 | B5: Concrete Pavements
A7: 610.01 | B7: Concrete pavement
A9: 610.01.01 | B9: Class 30/19, 150mm - 180mm thick
B10: in bus bays and roads | C10: m³ | D10: Rate only | F10: =IF(TRIM(D10)="rate only","ro",IF(OR(ISBLANK(D10),ISBLANK(E10))," ",D10*E10)) -> ro
B11: (state concrete finish)
A13: 610.01.02 | B13: Class 25/19, 100mm - 125mm thick
B14: in walkways and cycle tracks | C14: m³ | D14: Rate only | F14: =IF(TRIM(D14)="rate only","ro",IF(ISBLANK(E14)," ",D14*E14)) -> ro
B15: (including Class U2 concrete finish)
A17: 610.01.03 | B17: Etc for other classes and thickness
A22: 610.02 | B22: Texturing and curing of concrete
B23: pavement
A25: 610.02.01 | B25: Wire-brush texturing | C25: m² | D25: Rate only | F25: =IF(TRIM(D25)="rate only","ro",IF(ISBLANK(E25)," ",D25*E25)) -> ro
A27: 610.02.02 | B27: Curing | C27: m² | D27: Rate only | F27: =IF(TRIM(D27)="rate only","ro",IF(ISBLANK(E27)," ",D27*E27)) -> ro
A30: 610.03 | B30: Variation in the rate of application
B31: of the curing compound | C31: ℓ | D31: Rate only | F31: =IF(TRIM(D31)="rate only","ro",IF(ISBLANK(E31)," ",D31*E31)) -> ro
A33: 610.04 | B33: Joints
A35: 610.04.01 | B35: Expansion joints complete (excluding | C35: m | D35: Rate only | F35: =IF(TRIM(D35)="rate only","ro",IF(ISBLANK(E35)," ",D35*E35)) -> ro
B36: dowels)
A38: 610.04.02 | B38: Longitudinal hinge joints
A40: 610.04.02.01 | B40: Sawn hinge joints (unsealed) | C40: m | D40: Rate only | F40: =IF(TRIM(D40)="rate only","ro",IF(ISBLANK(E40)," ",D40*E40)) -> ro
A42: 610.04.02.02 | B42: Sawn hinge joints (sealed) | C42: m | D42: Rate only | F42: =IF(TRIM(D42)="rate only","ro",IF(ISBLANK(E42)," ",D42*E42)) -> ro
A49: TOTAL CARRIED FORWARD | F49: =SUM(F2:F48) -> R 0.00
A51: Signature of person authorised to sign the tender: | E51: Date
A54: ITEM | B54: DESCRIPTION | C54: UNIT | D54: QTY | E54: RATE | F54: AMOUNT
A55: TOTAL BROUGHT FORWARD | F55: =F49 -> R 0.00
A57: 610.04.03 | B57: Transverse contraction joints
A59: 610.04.03.01 | B59: Sawn contraction joints (sealed)
B60: completed in a single operation
B61: (width as shown on drawing STD010) | C61: m | D61: Rate only | F61: =IF(TRIM(D61)="rate only","ro",IF(ISBLANK(E61)," ",D61*E61)) -> ro
A63: 610.04.03.02 | B63: Sawn contraction joints (sealed)
B64: completed in two separate operations
B65: (width as shown on drawing STD010) | C65: m | D65: Rate only | F65: =IF(TRIM(D65)="rate only","ro",IF(ISBLANK(E65)," ",D65*E65)) -> ro
A67: 610.04.03.03 | B67: Sawn contraction joints (unsealed) | C67: m | D67: Rate only | F67: =IF(TRIM(D67)="rate only","ro",IF(ISBLANK(E67)," ",D67*E67)) -> ro
A70: 610.04.04 | B70: Dowel bars (R12 mild steel) | C70: m | D70: Rate only | F70: =IF(TRIM(D70)="rate only","ro",IF(ISBLANK(E70)," ",D70*E70)) -> ro
A72: 610.04.05 | B72: Tie bars | C72: m | D72: Rate only | F72: =IF(TRIM(D72)="rate only","ro",IF(ISBLANK(E72)," ",D72*E72)) -> ro
A74: 610.04.06 | B74: End caps for dowels at expansion
B75: joints | C75: no | D75: Rate only | F75: =IF(TRIM(D75)="rate only","ro",IF(ISBLANK(E75)," ",D75*E75)) -> ro
A77: 610.04.07 | B77: Forming and sealing of joints
B78: between asphalt and concrete
B79: pavement | C79: m | D79: Rate only | F79: =IF(TRIM(D79)="rate only","ro",IF(ISBLANK(E79)," ",D79*E79)) -> ro
A82: 610.05 | B82: Coring and testing of cores
A84: 610.05.01 | B84: 100mm cores drilled from pavement | C84: no | D84: Rate only | F84: =IF(TRIM(D84)="rate only","ro",IF(ISBLANK(E84)," ",D84*E84)) -> ro
A86: 610.05.02 | B86: 150mm cores drilled from pavement
B87: and tested for compressive strength | C87: no | D87: Rate only | F87: =IF(TRIM(D87)="rate only","ro",IF(ISBLANK(E87)," ",D87*E87)) -> ro
A90: 610.06 | B90: Repairing cracks
A92: 610.06.01 | B92: By injection of epoxy resin | C92: m | D92: Rate only | F92: =IF(TRIM(D92)="rate only","ro",IF(ISBLANK(E92)," ",D92*E92)) -> ro
A94: 610.06.02 | B94: By grouting and sealing with cold-
B95: applied liquid sealant | C95: m | D95: Rate only | F95: =IF(TRIM(D95)="rate only","ro",IF(ISBLANK(E95)," ",D95*E95)) -> ro
A98: 610.07 | B98: Breaking up, removing and
B99: replacing defective slabs | C99: m² | D99: Rate only | F99: =IF(TRIM(D99)="rate only","ro",IF(ISBLANK(E99)," ",D99*E99)) -> ro
A101: TOTAL CARRIED TO SUMMARY | F101: =SUM(F55:F100) -> R 0.00
A103: Signature of person authorised to sign the tender: | E103: Date

Sheet Section 612
A1: ITEM | B1: DESCRIPTION | C1: UNIT | D1: QTY | E1: RATE | F1: AMOUNT
A3: SERIES 6 | B3: ROADS AND PARKING AREAS
A5: Section B612 | B5: Traffic Signs
A7: B612.01 | B7: Sign boards with painted back-
B8: ground, symbols, lettering and
B9: borders in engineering-grade retro-
B10: reflective material with sign boards
B11: constructed from -
A13: B612.01.01 | B13: Aluminium sheet (2,0 mm thick) with an
A15: B612.01.01.01 | B15: Area not exceeding 2m² | C15: m² | D15: 25 | F15: =IF(TRIM(D15)="rate only","ro",IF(OR(ISBLANK(D15),ISBLANK(E15))," ",D15*E15)) -> 
A17: B612.03 | B17: Poles
A19: B612.03.02 | B19: Steel tubing | C19: t | D19: 1.00 | F19: =IF(TRIM(D19)="rate only","ro",IF(ISBLANK(E19)," ",D19*E19)) -> 
A21: B612.04 | B21: Extra over Items 612.03.01 and
B22: 612.03.02 for providing
A24: B612.04.02 | B24: Painted galvanized steel members | C24: t | D24: 1.00 | F24: =IF(TRIM(D24)="rate only","ro",IF(ISBLANK(E24)," ",D24*E24)) -> 
A27: 612.05 | B27: Excavation and backfilling for
B28: sign supports | C28: m³ | D28: =22*0.3*0.3*0.5 -> 1 | F28: =IF(TRIM(D28)="rate only","ro",IF(ISBLANK(E28)," ",D28*E28)) -> 
A31: 612.06 | B31: Dismantling, storing and re-erecting
B32: traffic signs with a surface area of -
A34: 612.06.01 | B34: Up to 2m² | C34: no | D34: 5 | F34: =IF(TRIM(D34)="rate only","ro",IF(ISBLANK(E34)," ",D34*E34)) -> 
A36: TOTAL CARRIED TO SUMMARY | F36: =SUM(F17:F35) -> R 0.00
A38: Signature of person authorised to sign the tender: | E38: Date

Sheet Section 613
A1: ITEM | B1: DESCRIPTION | C1: UNIT | D1: QTY | E1: RATE | F1: AMOUNT
A3: SERIES 6 | B3: ROADS AND PARKING AREAS
A5: Section B613 | B5: Traffic Markings
A7: 613.01 | B7: Road-marking paint
A9: 613.01.01 | B9: White lines (broken or unbroken)
B10: (100mm wide) | C10: km | D10: 0 | F10: =IF(TRIM(D10)="rate only","ro",IF(OR(ISBLANK(D10),ISBLANK(E10))," ",D10*E10)) -> 
A12: 613.01.02 | B12: Yellow lines (broken or unbroken)
B13: (width indicated) | C13: km | D13: =D10*2 -> 0 | F13: =IF(TRIM(D13)="rate only","ro",IF(ISBLANK(E13)," ",D13*E13)) -> 
A15: 613.01.03 | B15: White lettering and symbols | C15: m² | D15: 0 | F15: =IF(TRIM(D15)="rate only","ro",IF(ISBLANK(E15)," ",D15*E15)) -> 
A17: 613.01.06 | B17: Kerb markings (any colour) | C17: m² | D17: 0 | F17: =IF(TRIM(D17)="rate only","ro",IF(ISBLANK(E17)," ",D17*E17)) -> 
A19: B613.02.01 | B19: 1,2mm Thermoplastic Road Marking Paint
A21: B613.02.01.01 | B21: White lines (broken or unbroken)
B22: 100mm wide | C22: km | D22: 2 | F22: =IF(TRIM(D22)="rate only","ro",IF(ISBLANK(E22)," ",D22*E22)) -> 
A24: B613.02.01.02 | B24: Yellow lines (broken or unbroken)
B25: 100mm wide | C25: km | D25: =1.435*3 -> 4 | F25: =IF(TRIM(D25)="rate only","ro",IF(ISBLANK(E25)," ",D25*E25)) -> 
A27: B613.02.01.03 | B27: White lettering and symbols | C27: m² | D27: =12*2*8 -> 192 | F27: =IF(TRIM(D27)="rate only","ro",IF(ISBLANK(E27)," ",D27*E27)) -> 
A29: B613.02.01.04 | B29: Yellow lettering and symbols | C29: m² | D29: =65%*D27 -> 125 | F29: =IF(TRIM(D29)="rate only","ro",IF(ISBLANK(E29)," ",D29*E29)) -> 
A31: B613.02.01.05 | B31: Traffic-island markings (any colour) | C31: m² | D31: =D27*35% -> 67 | F31: =IF(TRIM(D31)="rate only","ro",IF(ISBLANK(E31)," ",D31*E31)) -> 
A33: 613.05 | B33: Road studs (SANS approved Cat eye all
B34: colours)
A36: 613.05.01 | B36: Single sided road stud | C36: no | D36: =(1435/12)*3 -> 359 | F36: =IF(TRIM(D36)="rate only","ro",IF(ISBLANK(E36)," ",D36*E36)) -> 
A38: 613.06 | B38: Setting out and the premarking of
B39: lines (excluding traffic-island
B40: markings, lettering and symbols) | C40: km | D40: 2 | F40: =IF(TRIM(D40)="rate only","ro",IF(ISBLANK(E40)," ",D40*E40)) -> 
A42: TOTAL CARRIED TO SUMMARY | F42: =SUM(F41:F41) -> R 0.00
A44: Signature of person authorised to sign the tender: | E44: Date

Sheet Section 903
A1: ITEM | B1: DESCRIPTION | C1: UNIT | D1: QTY | E1: RATE | F1: AMOUNT
A3: SERIES 9 | B3: QUALITY CONTROL
A5: Section 903 | B5: Testing all inclusive
A7: 903.06 | B7: Prime cost for special tests required
B8: by the Engineer | C8: Prime Cost | D8: 1 | E8: R 250,000.00 | F8: =D8*E8 -> R 250,000.00
A10: 903.06.01 | B10: Percentage on item 903.06 for
B11: charges and profit | C11: % | D11: =F8 -> R250,000.00
A25: TOTAL CARRIED TO SUMMARY
A27: Signature of person authorised to sign the tender: | E27: Date
A30: ITEM | B30: DESCRIPTION | C30: UNIT | D30: QTY | E30: RATE | F30: AMOUNT
A31: TOTAL BROUGHT FORWARD | F31: =F25 -> R 0.00
A33: 903.03 | B33: Special tests on concrete and asphalt
A35: 903.03.01 | B35: Compressive-strength tests on
B36: concrete cubes | C36: no | F36: =IF(TRIM(D36)="rate only","ro",IF(ISBLANK(E36)," ",D36*E36)) -> 
A38: 903.03.03 | B38: Compressive-strength tests on
B39: concrete cores | C39: no | F39: =IF(TRIM(D39)="rate only","ro",IF(ISBLANK(E39)," ",D39*E39)) -> 
A41: 903.03.04 | B41: Asphalt tests on cores | C41: no | F41: =IF(TRIM(D41)="rate only","ro",IF(ISBLANK(E41)," ",D41*E41)) -> 
A77: TOTAL CARRIED TO SUMMARY | F77: =SUM(F31:F76) -> R 0.00
A79: Signature of person authorised to sign the tender: | E79: Date

Sheet Summary
A1: SUMMARY OF PRICING SCHEDULE
A2: SECTION | B2: DESCRIPTION | C2: AMOUNT
A4: SERIES 0 | B4: GENERAL
A5: 001 | B5: General Requirements and Charges | C5: ='Section 001'!F66 -> R0.00
A6: 002 | B6: Engineers Accommodation | C6: ='Section 002'!F24 -> R0.00
F7: =E7*F5 -> R0.00
A8: SERIES 1 | B8: ANCILLARY WORK
A9: 101 | B9: Site Clearing and Grubbing | C9: ='Section 101'!F57 -> R0.00
A10: 102 | B10: Accommodation of Traffic | C10: ='Section 102'!F70 -> R0.00
A11: 103 | B11: Overhaul | C11: ='Section 103'!F22 -> R0.00
A12: 104 | B12: ='Section 104'!B5 -> Landscaping and Grassing | C12: ='Section 104'!F50 -> R0.00
A13: B107 | B13: Dayworks | C13: ='Section B107'!F58 -> R0.00
A15: SERIES 2 | B15: EARTHWORKS
A16: 201 | B16: General | C16: ='Section 201'!F28 -> R0.00
A17: 202 | B17: Trenching | C17: ='Section 202'!F94 -> R0.00
A18: 203 | B18: Mass Earthworks | C18: ='Section 203'!F99 -> R0.00
A20: SERIES 5 | B20: DRAINAGE AND EROSION PROTECTION
A21: 501 | B21: Subsurface Drains and Drainage Blankets | C21: ='Section 501'!F36 -> R0.00
A22: 502 | B22: Prefabricated Culverts and Stormwater Drainage | C22: ='Section 502'!F145 -> R0.00
A23: 503 | B23: Kerbing and Channelling | C23: ='Section 503'!F29 -> R0.00
A24: 504 | B24: Open Drains | C24: ='Section 504'!F88 -> R0.00
A25: 505 | B25: Erosion Protection | C25: ='Section 505'!F64 -> R0.00
A27: SERIES 6 | B27: ROADS AND PARKING AREAS
A28: 601 | B28: Gravel Pavement Layers | C28: ='Section 601'!F52 -> R0.00
A29: 602 | B29: Crushed-stone Pavement Layers | C29: ='Section 602'!F37 -> R0.00
A30: 603 | B30: Unpaved Areas | C30: ='Section 603'!F25 -> R0.00
A31: 604 | B31: Stabilization | C31: ='Section 604'!F22 -> R0.00
A32: 605 | B32: Prime Coat | C32: ='Section 605'!F25 -> R0.00
A33: 606 | B33: Asphalt Base and Surfacing | C33: ='Section 606'!F50 -> R0.00
A34: 609 | B34: Segmented Paving | C34: ='Section 609'!F23 -> R0.00
A35: 612 | B35: Traffic Signs | C35: ='Section 612'!F36 -> R0.00
A36: 613 | B36: Traffic Markings | C36: ='Section 613'!F42 -> R0.00
A38: SERIES 9 | B38: QUALITY CONTROL
A39: 903 | B39: Testing | C39: ='Section 903'!F77 -> R0.00
A41: TOTAL SCHEDULE OF PRICES | C41: =SUM(C38:C40) -> R0.00
A43: =CONCATENATE("Add ",TEXT(D43,"0.00"),"% for contingencies") -> Add 10.00% for contingencies | D43: 1000
A44: SUBTOTAL 1
A45: =CONCATENATE("Add ",TEXT(D45,"0.00"),"% CPA") -> Add 0.06% CPA | D45: 6
A46: SUBTOTAL 1
A47: =CONCATENATE("Add ",TEXT(D47,"15"),"% VAT") -> Add 15% VAT
A48: GRAND TOTAL
A49: CONTRACT PRICE CARRIED FORWARD TO FORM OF OFFER
A51: Signature of person authorised to sign the tender: | C51: Date

Sheet Sheet2

Sheet Master Section (hidden)
A1: ITEM | B1: DESCRIPTION | C1: UNIT | D1: QTY | E1: RATE | F1: AMOUNT
A3: SERIES # | B3: SERIES NAME
A5: Section ### | B5: Section name
F9: =IF(TRIM(D9)="rate only","ro",IF(OR(ISBLANK(D9),ISBLANK(E9))," ",D9*E9)) -> 
A49: TOTAL CARRIED FORWARD | F49: =SUM(F2:F48) -> R 0.00
A51: Signature of person authorised to sign the tender: | E51: Date
A54: ITEM | B54: DESCRIPTION | C54: UNIT | D54: QTY | E54: RATE | F54: AMOUNT
A55: TOTAL BROUGHT FORWARD | F55: =F49 -> R 0.00
A101: TOTAL CARRIED TO SUMMARY | F101: =SUM(F55:F100) -> R 0.00
A103: Signature of person authorised to sign the tender: | E103: Date
